Workbook

Sheet TwoAssets
A1: 2 Asset Portfolio
A2: Corelation | B2: -0.8
B3: StDev of Return | C3: Mean Expected Return | D3: Portfolio Weight
A4: Stock A | B4: 0.08 | C4: 0.04 | D4: 0.4
A5: Stock B | B5: 0.24 | C5: 0.15 | D5: =1-D4 -> 0.6
A6: Portfolio | B6: =(D4^2*B4^2+2*D4*D5*B2*B4*B5+D5^2*B5^2)^0.5 -> 0.1199466548 | C6: =C4*D4+C5*D5 -> 0.106
B9: Portfolio
A10: Weight A | B10: StDev | C10: Expected | L10: Important Formulas:
B11: =B6 -> 0.1199466548 | C11: =C6 -> 0.106 | L11: ρ(i,j) = CORR(i,j) = Correlation of returns between assets i and j
A12: 0 | B12: 0.24 | C12: 0.15 | L12: σ(i) = Stdev(i) = Standard deviation of returns of asset i
A13: =A12+0.1 -> 0.1 | B13: 0.2096549546 | C13: 0.139 | L13: σ(i,j) = COV(i,j) = Covariance of returns of assets i and j
A14: =A13+0.1 -> 0.2 | B14: 0.1794569586 | C14: 0.128 | L14: σ(i,j) = ρ(i,j) * σ(i) * σ(j) <-- COV(i,j) = CORR(i,j) * Stdev(i) * Stdev(j)
A15: 0.3 | B15: 0.1494951504 | C15: 0.117 | L15: ρ(i,j) = σ(i,j) / [σ(i) * σ(j)]
A16: 0.4 | B16: 0.1199466548 | C16: 0.106 | L16: Same two assets: COV(i,i) = VAR(i) = Stdev(i)^2
A17: 0.5 | B17: 0.09121403401 | C17: 0.095
A18: 0.6 | B18: 0.06439875775 | C18: 0.084 | L18: Variance-Covariance Matrix [σ(i,j)]
A19: 0.7 | B19: 0.04322961948 | C19: 0.073 | M19: Stock A | N19: Stock B | Q19: WA * WA * σ(A,A) = | R19: =D4*D4*M20 -> 0.001024
A20: 0.8 | B20: 0.03853310265 | C20: 0.062 | L20: Stock A | M20: =B4^2 -> 0.0064 | N20: =M21 -> -0.01536 | Q20: WA * WB * σ(A,B) = | R20: =D4*D5*N20 -> -0.0036864
A21: 0.9 | B21: 0.0547284204 | C21: 0.051 | L21: Stock B | M21: =B2*B4*B5 -> -0.01536 | N21: =B5^2 -> 0.0576 | Q21: WB * WA * σ(B,A) = | R21: =D5*D4*M21 -> -0.0036864
A22: 1 | B22: 0.08 | C22: 0.04 | Q22: WB * WB * σ(B,B) = | R22: =D5*D5*N21 -> 0.020736
L23: Current Wts --> | M23: =D4 -> 0.4 | N23: =1-M23 -> 0.6 | Q23: Portfolio Variance = | R23: =SUM(R19:R22) -> 0.0143872 | S23: =R23^0.5 -> 0.1199466548 | T23: <-- Portfolio Stdev
M25: Portfolio Variance | N25: =MMULT(MMULT(TRANSPOSE(D4:D5),M20:N21),D4:D5) -> 0.0143872 | O25: =getformula(N25) -> <-- =MMULT(MMULT(TRANSPOSE(D4:D5),M20:N21),D4:D5)
M26: Portfolio Stdev | N26: =N25^0.5 -> 0.1199466548 | O26: =getformula(N26) -> <-- =N25^0.5
I27: Blending Portfolios:
L28: 4 Portfolios from 2 Stocks | P28: Var/Covar Matrix for All 4 Portfolios
I29: S=Var/Covar Matrix | L29: Portfolio | M29: Wt A | N29: Wt B | O29: E(Return) | Q29: 1 | R29: 2 | S29: 3 | T29: 4 | U29: <-- Portfolio
L30: 1 | M30: 0.2 | N30: =1-M30 -> 0.8 | O30: =MMULT(M30:N33,C4:C5) -> 0.128 | P30: 1 | Q30: =MMULT(MMULT(M30:N33,M20:N21),TRANSPOSE(M30:N33)) -> 0.0322048 | R30: 0.0214016 | S30: 0.0105984 | T30: -0.0002048
L31: 2 | M31: 0.4 | N31: =1-M31 -> 0.6 | O31: 0.106 | P31: 2 | Q31: 0.0214016 | R31: 0.0143872 | S31: 0.0073728 | T31: 0.0003584
L32: 3 | M32: 0.6 | N32: 0.4 | O32: 0.084 | P32: 3 | Q32: 0.0105984 | R32: 0.0073728 | S32: 0.0041472 | T32: 0.0009216
L33: 4 | M33: 0.8 | N33: 0.2 | O33: 0.062 | P33: 4 | Q33: -0.0002048 | R33: 0.0003584 | S33: 0.0009216 | T33: 0.0014848
L36: W=Weight Matrix | O36: =_xlfn.FORMULATEXT(Q30) -> =MMULT(MMULT(M30:N33,M20:N21),TRANSPOSE(M30:N33)) | U36: <-- W S W'
M38: Weight Matrix * E(Returns)
M39: X | N39: Y
I40: =_xlfn.FORMULATEXT(M40) -> =INDEX($Q$30#,L40,L40)^0.5 | L40: 1 | M40: =INDEX(_xlfn.ANCHORARRAY($Q$30),L40,L40)^0.5 -> 0.1794569586 | N40: =O30 -> 0.128
L41: 2 | M41: =INDEX(_xlfn.ANCHORARRAY($Q$30),L41,L41)^0.5 -> 0.1199466548 | N41: =O31 -> 0.106
L42: 3 | M42: =INDEX(_xlfn.ANCHORARRAY($Q$30),L42,L42)^0.5 -> 0.06439875775 | N42: 0.084
L43: 4 | M43: =INDEX(_xlfn.ANCHORARRAY($Q$30),L43,L43)^0.5 -> 0.03853310265 | N43: 0.062
L45: MIN | M45: =MIN(M40:M43) -> 0.03853310265 | N45: =MIN(N40:N43) -> 0.062
L46: MAX | M46: =MAX(M40:M43) -> 0.1794569586 | N46: =MAX(N40:N43) -> 0.128

Sheet Pages 198, 199
A1: PRICES AND RETURNS FOR APPLE AND GOOGLE June 2007 - June 2012 | K1: STOCKHISTORY FUNCTION | R1: Number of Prices | S1: =COUNT(K11:K71) -> 61
A2: Monthly mean | B2: =AVERAGE(E11:E71) -> 0.02609253538 | C2: =AVERAGE(F11:F71) -> -0.002426902222 | D2: =getformula(C2) -> <-- =AVERAGE(F11:F71) | L2: =CORREL(M12:M71,P12:P71) -> 0.498744852 | M2: =_xlfn.FORMULATEXT(L2) -> =CORREL(M12:M71,P12:P71) | R2: Start | S2: 42856
A3: Monthly variance | B3: =_xlfn.VAR.S(E11:E71) -> 0.01247769069 | C3: =_xlfn.VAR.S(F11:F71) -> 0.01017518017 | D3: =getformula(C3) -> <-- =VAR.S(F11:F71) | K3: =K9 -> AAPL | L3: =_xlfn.STDEV.S(M12:M71) -> 0.08581210452 | M3: =_xlfn.FORMULATEXT(L3) -> =STDEV.S(M12:M71) | R3: End | S3: 44682
A4: Monthly standard deviation | B4: =_xlfn.STDEV.S(E11:E71) -> 0.1117035841 | C4: =_xlfn.STDEV.S(F11:F71) -> 0.1008720981 | D4: =getformula(C4) -> <-- =STDEV.S(F11:F71) | K4: =N10 -> Close | L4: =_xlfn.STDEV.S(P12:P71) -> 0.06915453922 | M4: =STDEV.S(P12:P71)
B5: AAPL | C5: Google | G5: Continuously Compounded Returns | L5: =L2*L3*L4 -> 0.002959699853 | M5: =L2*L3*L4 | P5: =_xlfn.COVARIANCE.S(M12:M71,P12:P71) -> 0.002959699853 | Q5: =_xlfn.FORMULATEXT(P5) -> =COVARIANCE.S(M12:M71,P12:P71)
A6: Annual mean | B6: =12*B2 -> 0.3131104246 | C6: =12*C2 -> -0.02912282667 | D6: =getformula(C6) -> <-- =12*C2 | G6: for Both AAPL & Google | K6: =_xlfn.FORMULATEXT(K10) -> =STOCKHISTORY(K9,S2,S3,2,1,1,0)
A7: Annual variance | B7: =12*B3 -> 0.1497322883 | C7: =12*C3 -> 0.122102162 | D7: =getformula(C7) -> <-- =12*C3 | N7: =_xlfn.FORMULATEXT(N10) -> =STOCKHISTORY(N9,S2,S3,2,1,1,0)
A8: Annual standard deviation | B8: =SQRT(12)*B4 -> 0.386952566 | C8: =SQRT(12)*C4 -> 0.3494311978 | D8: =getformula(C8) -> <-- =SQRT(12)*C4 | G8: =12^0.5*C4 -> 0.3494311978
B9: PRICES | E9: RETURNS | K9: AAPL | L9: =K9 -> AAPL | M9: =L9 -> AAPL | N9: GOOGL | O9: =N9 -> GOOGL | P9: GOOGL
A10: Date | B10: AAPL | C10: Google | E10: AAPL | F10: Google | K10: =_xlfn.STOCKHISTORY(K9,S2,S3,2,1,1,0) -> Close | L10: Date | M10: Return | N10: =_xlfn.STOCKHISTORY(N9,S2,S3,2,1,1,0) -> Close | O10: Date | P10: Return
A11: 2007-06-01 | B11: 122.04 | C11: 580.11 | K11: 38.19 | L11: 42856 | N11: 49.3545 | O11: 42856
A12: 2007-07-02 | B12: 131.76 | C12: 645.9 | E12: =LN(B12/B11) -> 0.07663322602 | F12: =LN(C12/C11) -> 0.1074269523 | G12: =getformula(F12) -> <-- =LN(C12/C11) | K12: 36.005 | L12: 42887 | M12: =LN(K12/K11) -> -0.05891588354 | N12: 46.484 | O12: 42887 | P12: =LN(N12/N11) -> -0.05992077977
A13: 2007-08-01 | B13: 138.48 | C13: 599.39 | E13: =LN(B13/B12) -> 0.049743825 | F13: =LN(C13/C12) -> -0.07473222165 | G13: =getformula(F13) -> <-- =LN(C13/C12) | I13: Hidden Rows!! | K13: 37.1825 | L13: 42917 | M13: =LN(K13/K12) -> 0.03218040278 | N13: 47.275 | O13: 42917 | P13: =LN(N13/N12) -> 0.01687344718
A14: 2007-09-04 | B14: 153.47 | C14: 592.64 | E14: 0.1027791973 | F14: -0.01132533938 | G14: <-- =LN(C14/C13) | K14: 41 | L14: 42948 | M14: 0.09773384622 | N14: 47.762 | O14: 42948 | P14: 0.01024872971
A15: 2007-10-01 | B15: 189.95 | C15: 515.04 | E15: 0.2132557714 | F15: -0.1403425645 | G15: <-- =LN(C15/C14) | K15: 38.53 | L15: 42979 | M15: -0.06213490807 | N15: 48.686 | O15: 42979 | P15: 0.01916117017
A16: 2007-11-01 | B16: 182.22 | C16: 540.96 | E16: -0.04154613135 | F16: 0.04910077141 | G16: <-- =LN(C16/C15) | K16: 42.26 | L16: 43009 | M16: 0.09240385355 | N16: 51.652 | O16: 43009 | P16: 0.05913740256
A17: 2007-12-03 | B17: 198.08 | C17: 603.69 | E17: 0.08345624121 | F17: 0.1097154822 | G17: <-- =LN(C17/C16) | K17: 42.9625 | L17: 43040 | M17: 0.01648662999 | N17: 51.8085 | O17: 43040 | P17: 0.003025311483
A18: 2008-01-02 | B18: 135.36 | C18: 506.38 | E18: -0.3807330936 | F18: -0.1757734456 | G18: <-- =LN(C18/C17) | K18: 42.3075 | L18: 43070 | M18: -0.01536326688 | N18: 52.67 | O18: 43070 | P18: 0.01649180503
A19: 2008-02-01 | B19: 125.02 | C19: 529.02 | E19: -0.07946417135 | F19: 0.04373886275 | G19: <-- =LN(C19/C18) | K19: 41.8575 | L19: 43101 | M19: -0.01069338295 | N19: 59.111 | O19: 43101 | P19: 0.1153709988
A20: 2008-03-03 | B20: 143.5 | C20: 544.1 | E20: 0.1378613107 | F20: 0.02810681516 | G20: <-- =LN(C20/C19) | K20: 44.53 | L20: 43132 | M20: 0.06189212699 | N20: 55.196 | O20: 43132 | P20: -0.06852654542
A21: 2008-04-01 | B21: 173.95 | C21: 586.76 | E21: 0.1924328664 | F21: 0.07548282413 | G21: <-- =LN(C21/C20) | K21: 41.945 | L21: 43160 | M21: -0.05980388304 | N21: 51.857 | O21: 43160 | P21: -0.0624005565
A22: 2008-05-01 | B22: 188.75 | C22: 613.4 | E22: 0.08165548653 | F22: 0.04440137406 | G22: <-- =LN(C22/C21) | K22: 41.315 | L22: 43191 | M22: -0.01513360615 | N22: 50.929 | O22: 43191 | P22: -0.01805742447
A23: 2008-06-02 | B23: 167.44 | C23: 600.36 | E23: -0.11979831 | F23: -0.02148777639 | G23: <-- =LN(C23/C22) | K23: 46.7175 | L23: 43221 | M23: 0.1228931967 | N23: 55 | O23: 43221 | P23: 0.07690067932
A24: 2008-07-01 | B24: 158.95 | C24: 593.97 | E24: -0.05203539078 | F24: -0.01070066225 | G24: <-- =LN(C24/C23) | K24: 46.2775 | L24: 43252 | M24: -0.009462944963 | N24: 56.4595 | O24: 43252 | P24: 0.02619038173
A25: 2008-08-01 | B25: 169.53 | C25: 555.71 | E25: 0.06444021495 | F25: -0.06658223759 | G25: <-- =LN(C25/C24) | K25: 47.5725 | L25: 43282 | M25: 0.02759898134 | N25: 61.361 | O25: 43282 | P25: 0.08325088723
A26: 2008-09-02 | B26: 113.66 | C26: 613.7 | E26: -0.3998183664 | F26: 0.09925963395 | G26: <-- =LN(C26/C25) | K26: 56.9075 | L26: 43313 | M26: 0.1791722794 | N26: 61.59 | O26: 43313 | P26: 0.003725065511
A27: 2008-10-01 | B27: 107.59 | C27: 525.79 | E27: -0.05488382926 | F27: -0.1546043159 | G27: <-- =LN(C27/C26) | K27: 56.435 | L27: 43344 | M27: -0.008337609232 | N27: 60.354 | O27: 43344 | P27: -0.02027229432
A28: 2008-11-03 | B28: 92.67 | C28: 450.02 | E28: -0.149282911 | F28: -0.1556098673 | G28: <-- =LN(C28/C27) | K28: 54.715 | L28: 43374 | M28: -0.03095163854 | N28: 54.529 | O28: 43374 | P28: -0.1014945551
A29: 2008-12-01 | B29: 85.35 | C29: 484.85 | E29: -0.08228434636 | F29: 0.07454753853 | G29: <-- =LN(C29/C28) | K29: 44.645 | L29: 43405 | M29: -0.2033955759 | N29: 55.4825 | O29: 43405 | P29: 0.01733498547
A30: 2009-01-02 | B30: 90.13 | C30: 444.95 | E30: 0.05449262333 | F30: -0.08587764845 | G30: <-- =LN(C30/C29) | K30: 39.435 | L30: 43435 | M30: -0.1240885721 | N30: 52.248 | O30: 43435 | P30: -0.06006604311
A31: 2009-02-02 | B31: 89.31 | C31: 485.63 | E31: -0.009139608873 | F31: 0.08748510078 | G31: <-- =LN(C31/C30) | K31: 41.61 | L31: 43466 | M31: 0.05368677614 | N31: 56.2945 | O31: 43466 | P31: 0.07459522683
A32: 2009-03-02 | B32: 105.12 | C32: 525.7 | E32: 0.162989091 | F32: 0.07928369075 | G32: <-- =LN(C32/C31) | K32: 43.2875 | L32: 43497 | M32: 0.03952338673 | N32: 56.3275 | O32: 43497 | P32: 0.0005860311652
A33: 2009-04-01 | B33: 125.83 | C33: 567.12 | E33: 0.1798292349 | F33: 0.07584021372 | G33: <-- =LN(C33/C32) | K33: 47.4875 | L33: 43525 | M33: 0.09260260879 | N33: 58.8445 | O33: 43525 | P33: 0.0437155008
A34: 2009-05-01 | B34: 135.81 | C34: 526.8 | E34: 0.07632506051 | F34: -0.07374995168 | G34: <-- =LN(C34/C33) | K34: 50.1675 | L34: 43556 | M34: 0.05490088816 | N34: 59.948 | O34: 43556 | P34: 0.01857914839
A35: 2009-06-01 | B35: 142.43 | C35: 529.94 | E35: 0.04759380083 | F35: 0.005942822721 | G35: <-- =LN(C35/C34) | K35: 43.7675 | L35: 43586 | M35: -0.1364758739 | N35: 55.325 | O35: 43586 | P35: -0.08025263385
A36: 2009-07-01 | B36: 163.39 | C36: 619.98 | E36: 0.1372893301 | F36: 0.1569234269 | G36: <-- =LN(C36/C35) | K36: 49.48 | L36: 43617 | M36: 0.1226770147 | N36: 54.14 | O36: 43617 | P36: -0.02165160175
A37: 2009-08-03 | B37: 168.21 | C37: 583 | E37: 0.02907321776 | F37: -0.0615000331 | G37: <-- =LN(C37/C36) | K37: 53.26 | L37: 43647 | M37: 0.07361703286 | N37: 60.91 | O37: 43647 | P37: 0.1178240807
A38: 2009-09-01 | B38: 185.35 | C38: 536.12 | E38: 0.09703273079 | F38: -0.08382916974 | G38: <-- =LN(C38/C37) | K38: 52.185 | L38: 43678 | M38: -0.02039048311 | N38: 59.5265 | O38: 43678 | P38: -0.0229757733
A39: 2009-10-01 | B39: 188.5 | C39: 495.85 | E39: 0.01685207729 | F39: -0.07808455498 | G39: <-- =LN(C39/C38) | K39: 55.9925 | L39: 43709 | M39: 0.07042265592 | N39: 61.057 | O39: 43709 | P39: 0.02538626255
A40: 2009-11-02 | B40: 199.91 | C40: 461.67 | E40: 0.05876925838 | F40: -0.07142311149 | G40: <-- =LN(C40/C39) | K40: 62.19 | L40: 43739 | M40: 0.1049764619 | N40: 62.94 | O40: 43739 | P40: 0.03037403754
A41: 2009-12-01 | B41: 210.73 | C41: 443.05 | E41: 0.05271042794 | F41: -0.04116771965 | G41: <-- =LN(C41/C40) | K41: 66.8125 | L41: 43770 | M41: 0.07169597367 | N41: 65.2045 | O41: 43770 | P41: 0.03534659332
A42: 2010-01-04 | B42: 192.06 | C42: 421.59 | E42: -0.09276987 | F42: -0.04964935271 | G42: <-- =LN(C42/C41) | K42: 73.4125 | L42: 43800 | M42: 0.09420403206 | N42: 66.9695 | O42: 43800 | P42: 0.02670880691
A43: 2010-02-01 | B43: 204.62 | C43: 417.23 | E43: 0.06334677724 | F43: -0.01039564928 | G43: <-- =LN(C43/C42) | K43: 77.3775 | L43: 43831 | M43: 0.05260181981 | N43: 71.639 | O43: 43831 | P43: 0.06740232655
A44: 2010-03-01 | B44: 235 | C44: 395.97 | E44: 0.1384309137 | F44: -0.05229917769 | G44: <-- =LN(C44/C43) | K44: 68.34 | L44: 43862 | M44: -0.124200794 | N44: 66.9625 | O44: 43862 | P44: -0.06750685721
A45: 2010-04-01 | B45: 261.09 | C45: 348.06 | E45: 0.1052796613 | F45: -0.1289635721 | G45: <-- =LN(C45/C44) | K45: 63.5725 | L45: 43891 | M45: -0.07231425979 | N45: 58.0975 | O45: 43891 | P45: -0.1420101275
A46: 2010-05-03 | B46: 256.88 | C46: 337.99 | E46: -0.01625612569 | F46: -0.02935856946 | G46: <-- =LN(C46/C45) | K46: 73.45 | L46: 43922 | M46: 0.1444239157 | N46: 67.335 | O46: 43922 | P46: 0.1475575272
A47: 2010-06-01 | B47: 251.53 | C47: 338.53 | E47: -0.02104678306 | F47: 0.001596405471 | G47: <-- =LN(C47/C46) | K47: 79.485 | L47: 43952 | M47: 0.07896342199 | N47: 71.676 | O47: 43952 | P47: 0.06247580264
A48: 2010-07-01 | B48: 257.25 | C48: 307.65 | E48: 0.02248610799 | F48: -0.09564994153 | G48: <-- =LN(C48/C47) | K48: 91.2 | L48: 43983 | M48: 0.1374865725 | N48: 70.9025 | O48: 43983 | P48: -0.01085026969
A49: 2010-08-02 | B49: 243.1 | C49: 292.96 | E49: -0.05657549339 | F49: -0.04892669226 | G49: <-- =LN(C49/C48) | K49: 106.26 | L49: 44013 | M49: 0.1528340239 | N49: 74.3975 | O49: 44013 | P49: 0.04811664528
A50: 2010-09-01 | B50: 283.75 | C50: 359.36 | E50: 0.1546206875 | F50: 0.2042885906 | G50: <-- =LN(C50/C49) | K50: 129.04 | L50: 44044 | M50: 0.1942335128 | N50: 81.4765 | O50: 44044 | P50: 0.09089229599
A51: 2010-10-01 | B51: 300.98 | C51: 400.52 | E51: 0.05895024856 | F51: 0.1084390313 | G51: <-- =LN(C51/C50) | K51: 115.81 | L51: 44075 | M51: -0.1081715166 | N51: 73.28 | O51: 44075 | P51: -0.1060269147
A52: 2010-11-01 | B52: 311.15 | C52: 463.29 | E52: 0.03323129366 | F52: 0.1455895051 | G52: <-- =LN(C52/C51) | K52: 108.86 | L52: 44105 | M52: -0.06188826419 | N52: 80.8055 | O52: 44105 | P52: 0.09775731215
A53: 2010-12-01 | B53: 322.56 | C53: 473.75 | E53: 0.03601405443 | F53: 0.02232654849 | G53: <-- =LN(C53/C52) | K53: 119.05 | L53: 44136 | M53: 0.08948091993 | N53: 87.72 | O53: 44136 | P53: 0.08210489103
A54: 2011-01-03 | B54: 339.32 | C54: 526.42 | E54: 0.0506544495 | F54: 0.1054196168 | G54: <-- =LN(C54/C53) | K54: 132.69 | L54: 44166 | M54: 0.1084720076 | N54: 87.632 | O54: 44166 | P54: -0.001003695508
A55: 2011-02-01 | B55: 353.21 | C55: 585.8 | E55: 0.04011916596 | F55: 0.1068790612 | G55: <-- =LN(C55/C54) | K55: 131.96 | L55: 44197 | M55: -0.005516734188 | N55: 91.368 | O55: 44197 | P55: 0.04174907971
A56: 2011-03-01 | B56: 348.51 | C56: 574.29 | E56: -0.01339585671 | F56: -0.01984393918 | G56: <-- =LN(C56/C55) | K56: 121.26 | L56: 44228 | M56: -0.08456184572 | N56: 101.0955 | O56: 44228 | P56: 0.1011703069
A57: 2011-04-01 | B57: 350.13 | C57: 440.47 | E57: 0.004637589899 | F57: -0.2652921566 | G57: <-- =LN(C57/C56) | K57: 122.15 | L57: 44256 | M57: 0.00731279706 | N57: 103.126 | O57: 44256 | P57: 0.01988592693
A58: 2011-05-02 | B58: 347.83 | C58: 471.18 | E58: -0.006590659423 | F58: 0.06739784798 | G58: <-- =LN(C58/C57) | K58: 131.46 | L58: 44287 | M58: 0.07345282513 | N58: 117.675 | O58: 44287 | P58: 0.1319750457
A59: 2011-06-01 | B59: 335.67 | C59: 564.3 | E59: -0.03558532018 | F59: 0.1803458384 | G59: <-- =LN(C59/C58) | K59: 124.61 | L59: 44317 | M59: -0.05351376288 | N59: 117.8425 | O59: 44317 | P59: 0.001422399849
A60: 2011-07-01 | B60: 390.48 | C60: 691.48 | E60: 0.1512482171 | F60: 0.2032482031 | G60: <-- =LN(C60/C59) | K60: 136.96 | L60: 44348 | M60: 0.09450005244 | N60: 122.0895 | O60: 44348 | P60: 0.0354053952
A61: 2011-08-01 | B61: 384.83 | C61: 693 | E61: -0.01457507325 | F61: 0.002195771135 | G61: <-- =LN(C61/C60) | K61: 145.86 | L61: 44378 | M61: 0.06295834516 | N61: 134.7265 | O61: 44378 | P61: 0.09849241522
A62: 2011-09-01 | B62: 381.32 | C62: 707 | E62: -0.009162760705 | F62: 0.02000066671 | G62: <-- =LN(C62/C61) | K62: 151.83 | L62: 44409 | M62: 0.04011421634 | N62: 144.6975 | O62: 44409 | P62: 0.07139855881
A63: 2011-10-03 | B63: 404.78 | C63: 567.27 | E63: 0.05970479201 | F63: -0.220195285 | G63: <-- =LN(C63/C62) | K63: 141.5 | L63: 44440 | M63: -0.07046175681 | N63: 133.676 | O63: 44440 | P63: -0.07922639473
A64: 2011-11-01 | B64: 382.2 | C64: 515.25 | E64: -0.05739967783 | F64: -0.09618316109 | G64: <-- =LN(C64/C63) | K64: 149.8 | L64: 44470 | M64: 0.057001354 | N64: 148.046 | O64: 44470 | P64: 0.1021040746
A65: 2011-12-01 | B65: 405 | C65: 510 | E65: 0.0579430353 | F65: -0.01024149405 | G65: <-- =LN(C65/C64) | K65: 165.3 | L65: 44501 | M65: 0.09846093374 | N65: 141.8975 | O65: 44501 | P65: -0.04241807031
A66: 2012-01-03 | B66: 456.48 | C66: 522.7 | E66: 0.1196578204 | F66: 0.02459696 | G66: <-- =LN(C66/C65) | I66: Rows!!! | K66: 177.57 | L66: 44531 | M66: 0.07160289254 | N66: 144.852 | O66: 44531 | P66: 0.02060756554
A67: 2012-02-01 | B67: 542.44 | C67: 497.91 | E67: 0.1725325928 | F67: -0.04858834792 | G67: <-- =LN(C67/C66) | K67: 174.78 | L67: 44562 | M67: -0.01583685717 | N67: 135.3035 | O67: 44562 | P67: -0.06819212822
A68: 2012-03-01 | B68: 599.55 | C68: 471.38 | E68: 0.1001018936 | F68: -0.05475477501 | K68: 165.12 | L68: 44593 | M68: -0.05685555791 | N68: 135.057 | O68: 44593 | P68: -0.001823491733
A69: 2012-04-02 | B69: 583.98 | C69: 458.16 | E69: -0.02631263816 | F69: -0.0284460947 | K69: 174.61 | L69: 44621 | M69: 0.05588243324 | N69: 139.0675 | O69: 44621 | P69: 0.02926251522
A70: 2012-05-01 | B70: 577.73 | C70: 449.45 | E70: -0.01076010416 | F70: -0.01919385507 | K70: 157.65 | L70: 44652 | M70: -0.1021775295 | N70: 114.1095 | O70: 44652 | P70: -0.1978009131
A71: 2012-06-01 | B71: 584 | C71: 501.5 | E71: 0.01079435132 | F71: 0.1095789944 | K71: 148.84 | L71: 44682 | M71: -0.05750548251 | N71: 113.762 | O71: 44682 | P71: -0.003049966928
A73: Note: Dates here run oldest (top) to most recent (bottom)!
K74: DATA/STOCKS:
L75: Beta | M75: Ticker | N75: High
L76: =_FV(K76,"Beta") -> 0.9543 | M76: =_FV(K76,"Ticker symbol",TRUE) -> MSFT | N76: =_FV(K76,"52 week high",TRUE) -> 468.35
L77: =_FV(K77,"Beta") -> 1.2966 | M77: =_FV(K77,"Ticker symbol",TRUE) -> AAPL | N77: =_FV(K77,"52 week high",TRUE) -> 260.1

Sheet Page 200
A1: COMPUTING COVARIANCE AND CORRELATION
B2: Stock returns | E2: Return minus average
A3: Date | B3: AAPL | C3: Google | E3: AAPL | F3: Google | G3: Product
A4: 2007-07-02 | B4: ='Pages 198, 199'!E12 -> 0.07663322602 | C4: ='Pages 198, 199'!F12 -> 0.1074269523 | D4: =ggetformula(E4)&" -->" -> =B4-$B$65 --> | E4: =B4-$B$65 -> 0.05054069064 | F4: =C4-$C$65 -> 0.1098538545 | G4: =E4*F4 -> 0.005552089677 | H4: =getformula(G4) -> <-- =E4*F4
A5: 2007-08-01 | B5: ='Pages 198, 199'!E13 -> 0.049743825 | C5: ='Pages 198, 199'!F13 -> -0.07473222165 | D5: =ggetformula(E5)&" -->" -> =B5-$B$65 --> | E5: =B5-$B$65 -> 0.02365128962 | F5: =C5-$C$65 -> -0.07230531942 | G5: =E5*F5 -> -0.00171011405 | H5: =getformula(G5) -> <-- =E5*F5
A6: 2007-09-04 | B6: ='Pages 198, 199'!E14 -> 0.1027791973 | C6: ='Pages 198, 199'!F14 -> -0.01132533938 | E6: 0.07668666194 | F6: -0.008898437153 | G6: -0.0006823914417
A7: 2007-10-01 | B7: ='Pages 198, 199'!E15 -> 0.2132557714 | C7: ='Pages 198, 199'!F15 -> -0.1403425645 | E7: 0.1871632361 | F7: -0.1379156622 | G7: -0.02581274165
A8: 2007-11-01 | B8: ='Pages 198, 199'!E16 -> -0.04154613135 | C8: ='Pages 198, 199'!F16 -> 0.04910077141 | E8: -0.06763866673 | F8: 0.05152767363 | G8: -0.003485263144
A9: 2007-12-03 | B9: ='Pages 198, 199'!E17 -> 0.08345624121 | C9: ='Pages 198, 199'!F17 -> 0.1097154822 | E9: 0.05736370583 | F9: 0.1121423844 | G9: 0.00643290275
A10: 2008-01-02 | B10: ='Pages 198, 199'!E18 -> -0.3807330936 | C10: ='Pages 198, 199'!F18 -> -0.1757734456 | E10: -0.406825629 | F10: -0.1733465433 | G10: 0.07052181653
A11: 2008-02-01 | B11: ='Pages 198, 199'!E19 -> -0.07946417135 | C11: ='Pages 198, 199'!F19 -> 0.04373886275 | E11: -0.1055567067 | F11: 0.04616576497 | G11: -0.004873106114
A12: 2008-03-03 | B12: ='Pages 198, 199'!E20 -> 0.1378613107 | C12: ='Pages 198, 199'!F20 -> 0.02810681516 | E12: 0.1117687753 | F12: 0.03053371739 | G12: 0.003412716198
A13: 2008-04-01 | B13: ='Pages 198, 199'!E21 -> 0.1924328664 | C13: ='Pages 198, 199'!F21 -> 0.07548282413 | E13: 0.166340331 | F13: 0.07790972635 | G13: 0.01295952967
A14: 2008-05-01 | B14: ='Pages 198, 199'!E22 -> 0.08165548653 | C14: ='Pages 198, 199'!F22 -> 0.04440137406 | E14: 0.05556295115 | F14: 0.04682827628 | G14: 0.002601917227
A15: 2008-06-02 | B15: ='Pages 198, 199'!E23 -> -0.11979831 | C15: ='Pages 198, 199'!F23 -> -0.02148777639 | E15: -0.1458908454 | F15: -0.01906087417 | G15: 0.002780807046
A16: 2008-07-01 | B16: ='Pages 198, 199'!E24 -> -0.05203539078 | C16: ='Pages 198, 199'!F24 -> -0.01070066225 | E16: -0.07812792616 | F16: -0.008273760029 | G16: 0.0006464117127
A17: 2008-08-01 | B17: ='Pages 198, 199'!E25 -> 0.06444021495 | C17: ='Pages 198, 199'!F25 -> -0.06658223759 | E17: 0.03834767957 | F17: -0.06415533537 | G17: -0.002460208243
A18: 2008-09-02 | B18: ='Pages 198, 199'!E26 -> -0.3998183664 | C18: ='Pages 198, 199'!F26 -> 0.09925963395 | E18: -0.4259109018 | F18: 0.1016865362 | G18: -0.04330940432
A19: 2008-10-01 | B19: ='Pages 198, 199'!E27 -> -0.05488382926 | C19: ='Pages 198, 199'!F27 -> -0.1546043159 | E19: -0.08097636465 | F19: -0.1521774137 | G19: 0.01232277374
A20: 2008-11-03 | B20: ='Pages 198, 199'!E28 -> -0.149282911 | C20: ='Pages 198, 199'!F28 -> -0.1556098673 | E20: -0.1753754464 | F20: -0.153182965 | G20: 0.02686453087
A21: 2008-12-01 | B21: ='Pages 198, 199'!E29 -> -0.08228434636 | C21: ='Pages 198, 199'!F29 -> 0.07454753853 | E21: -0.1083768817 | F21: 0.07697444075 | G21: -0.008342249862
A22: 2009-01-02 | B22: ='Pages 198, 199'!E30 -> 0.05449262333 | C22: ='Pages 198, 199'!F30 -> -0.08587764845 | E22: 0.02840008794 | F22: -0.08345074623 | G22: -0.002370008532
A23: 2009-02-02 | B23: ='Pages 198, 199'!E31 -> -0.009139608873 | C23: ='Pages 198, 199'!F31 -> 0.08748510078 | E23: -0.03523214426 | F23: 0.089912003 | G23: -0.00316779266
A24: 2009-03-02 | B24: ='Pages 198, 199'!E32 -> 0.162989091 | C24: ='Pages 198, 199'!F32 -> 0.07928369075 | E24: 0.1368965557 | F24: 0.08171059297 | G24: 0.01118589874
A25: 2009-04-01 | B25: ='Pages 198, 199'!E33 -> 0.1798292349 | C25: ='Pages 198, 199'!F33 -> 0.07584021372 | E25: 0.1537366995 | F25: 0.07826711594 | G25: 0.01203252808
A26: 2009-05-01 | B26: ='Pages 198, 199'!E34 -> 0.07632506051 | C26: ='Pages 198, 199'!F34 -> -0.07374995168 | E26: 0.05023252513 | F26: -0.07132304946 | G26: -0.003582736874
A27: 2009-06-01 | B27: ='Pages 198, 199'!E35 -> 0.04759380083 | C27: ='Pages 198, 199'!F35 -> 0.005942822721 | E27: 0.02150126545 | F27: 0.008369724944 | G27: 0.0001799596777
A28: 2009-07-01 | B28: ='Pages 198, 199'!E36 -> 0.1372893301 | C28: ='Pages 198, 199'!F36 -> 0.1569234269 | E28: 0.1111967947 | F28: 0.1593503291 | G28: 0.01771924583
A29: 2009-08-03 | B29: ='Pages 198, 199'!E37 -> 0.02907321776 | C29: ='Pages 198, 199'!F37 -> -0.0615000331 | E29: 0.002980682378 | F29: -0.05907313088 | G29: -0.0001760782402
A30: 2009-09-01 | B30: ='Pages 198, 199'!E38 -> 0.09703273079 | C30: ='Pages 198, 199'!F38 -> -0.08382916974 | E30: 0.07094019541 | F30: -0.08140226752 | G30: -0.005774692765
A31: 2009-10-01 | B31: ='Pages 198, 199'!E39 -> 0.01685207729 | C31: ='Pages 198, 199'!F39 -> -0.07808455498 | E31: -0.009240458092 | F31: -0.07565765276 | G31: 0.0006991113696
A32: 2009-11-02 | B32: ='Pages 198, 199'!E40 -> 0.05876925838 | C32: ='Pages 198, 199'!F40 -> -0.07142311149 | E32: 0.032676723 | F32: -0.06899620927 | G32: -0.002254570018
A33: 2009-12-01 | B33: ='Pages 198, 199'!E41 -> 0.05271042794 | C33: ='Pages 198, 199'!F41 -> -0.04116771965 | E33: 0.02661789256 | F33: -0.03874081743 | G33: -0.001031198916
A34: 2010-01-04 | B34: ='Pages 198, 199'!E42 -> -0.09276987 | C34: ='Pages 198, 199'!F42 -> -0.04964935271 | E34: -0.1188624054 | F34: -0.04722245049 | G34: 0.005612974053
A35: 2010-02-01 | B35: ='Pages 198, 199'!E43 -> 0.06334677724 | C35: ='Pages 198, 199'!F43 -> -0.01039564928 | E35: 0.03725424186 | F35: -0.007968747059 | G35: -0.0002968696303
A36: 2010-03-01 | B36: ='Pages 198, 199'!E44 -> 0.1384309137 | C36: ='Pages 198, 199'!F44 -> -0.05229917769 | E36: 0.1123383783 | F36: -0.04987227547 | G36: -0.005602570549
A37: 2010-04-01 | B37: ='Pages 198, 199'!E45 -> 0.1052796613 | C37: ='Pages 198, 199'!F45 -> -0.1289635721 | E37: 0.07918712594 | F37: -0.1265366699 | G37: -0.01002007521
A38: 2010-05-03 | B38: ='Pages 198, 199'!E46 -> -0.01625612569 | C38: ='Pages 198, 199'!F46 -> -0.02935856946 | E38: -0.04234866107 | F38: -0.02693166724 | G38: 0.001140520048
A39: 2010-06-01 | B39: ='Pages 198, 199'!E47 -> -0.02104678306 | C39: ='Pages 198, 199'!F47 -> 0.001596405471 | E39: -0.04713931844 | F39: 0.004023307693 | G39: -0.0001896559826
A40: 2010-07-01 | B40: ='Pages 198, 199'!E48 -> 0.02248610799 | C40: ='Pages 198, 199'!F48 -> -0.09564994153 | E40: -0.003606427389 | F40: -0.09322303931 | G40: 0.0003362021223
A41: 2010-08-02 | B41: ='Pages 198, 199'!E49 -> -0.05657549339 | C41: ='Pages 198, 199'!F49 -> -0.04892669226 | E41: -0.08266802878 | F41: -0.04649979004 | G41: 0.003844045981
A42: 2010-09-01 | B42: ='Pages 198, 199'!E50 -> 0.1546206875 | C42: ='Pages 198, 199'!F50 -> 0.2042885906 | E42: 0.1285281521 | F42: 0.2067154928 | G42: 0.0265687603
A43: 2010-10-01 | B43: ='Pages 198, 199'!E51 -> 0.05895024856 | C43: ='Pages 198, 199'!F51 -> 0.1084390313 | E43: 0.03285771318 | F43: 0.1108659335 | G43: 0.003642801045
A44: 2010-11-01 | B44: ='Pages 198, 199'!E52 -> 0.03323129366 | C44: ='Pages 198, 199'!F52 -> 0.1455895051 | E44: 0.007138758274 | F44: 0.1480164073 | G44: 0.001056653352
A45: 2010-12-01 | B45: ='Pages 198, 199'!E53 -> 0.03601405443 | C45: ='Pages 198, 199'!F53 -> 0.02232654849 | E45: 0.009921519045 | F45: 0.02475345072 | G45: 0.0002455918327
A46: 2011-01-03 | B46: ='Pages 198, 199'!E54 -> 0.0506544495 | C46: ='Pages 198, 199'!F54 -> 0.1054196168 | E46: 0.02456191411 | F46: 0.107846519 | G46: 0.002648916938
A47: 2011-02-01 | B47: ='Pages 198, 199'!E55 -> 0.04011916596 | C47: ='Pages 198, 199'!F55 -> 0.1068790612 | E47: 0.01402663058 | F47: 0.1093059634 | G47: 0.001533194369
A48: 2011-03-01 | B48: ='Pages 198, 199'!E56 -> -0.01339585671 | C48: ='Pages 198, 199'!F56 -> -0.01984393918 | E48: -0.03948839209 | F48: -0.01741703696 | G48: 0.0006877707843
A49: 2011-04-01 | B49: ='Pages 198, 199'!E57 -> 0.004637589899 | C49: ='Pages 198, 199'!F57 -> -0.2652921566 | E49: -0.02145494548 | F49: -0.2628652544 | G49: 0.005639759702
A50: 2011-05-02 | B50: ='Pages 198, 199'!E58 -> -0.006590659423 | C50: ='Pages 198, 199'!F58 -> 0.06739784798 | E50: -0.03268319481 | F50: 0.06982475021 | G50: -0.002282095913
A51: 2011-06-01 | B51: ='Pages 198, 199'!E59 -> -0.03558532018 | C51: ='Pages 198, 199'!F59 -> 0.1803458384 | E51: -0.06167785556 | F51: 0.1827727406 | G51: -0.01127303069
A52: 2011-07-01 | B52: ='Pages 198, 199'!E60 -> 0.1512482171 | C52: ='Pages 198, 199'!F60 -> 0.2032482031 | E52: 0.1251556817 | F52: 0.2056751053 | G52: 0.02574140801
A53: 2011-08-01 | B53: ='Pages 198, 199'!E61 -> -0.01457507325 | C53: ='Pages 198, 199'!F61 -> 0.002195771135 | E53: -0.04066760863 | F53: 0.004622673357 | G53: -0.0001879930709
A54: 2011-09-01 | B54: ='Pages 198, 199'!E62 -> -0.009162760705 | C54: ='Pages 198, 199'!F62 -> 0.02000066671 | E54: -0.03525529609 | F54: 0.02242756893 | G54: -0.0007906905831
A55: 2011-10-03 | B55: ='Pages 198, 199'!E63 -> 0.05970479201 | C55: ='Pages 198, 199'!F63 -> -0.220195285 | E55: 0.03361225663 | F55: -0.2177683828 | G55: -0.007319686769
A56: 2011-11-01 | B56: ='Pages 198, 199'!E64 -> -0.05739967783 | C56: ='Pages 198, 199'!F64 -> -0.09618316109 | E56: -0.08349221321 | F56: -0.09375625887 | G56: 0.007827917556
A57: 2011-12-01 | B57: ='Pages 198, 199'!E65 -> 0.0579430353 | C57: ='Pages 198, 199'!F65 -> -0.01024149405 | E57: 0.03185049992 | F57: -0.00781459183 | G57: -0.0002488986564
A58: 2012-01-03 | B58: ='Pages 198, 199'!E66 -> 0.1196578204 | C58: ='Pages 198, 199'!F66 -> 0.02459696 | E58: 0.09356528498 | F58: 0.02702386222 | G58: 0.00252849537
A59: 2012-02-01 | B59: ='Pages 198, 199'!E67 -> 0.1725325928 | C59: ='Pages 198, 199'!F67 -> -0.04858834792 | E59: 0.1464400574 | F59: -0.0461614457 | G59: -0.006759884756
A60: 2012-03-01 | B60: ='Pages 198, 199'!E68 -> 0.1001018936 | C60: ='Pages 198, 199'!F68 -> -0.05475477501 | E60: 0.07400935822 | F60: -0.05232787279 | G60: -0.003872752282
A61: 2012-04-02 | B61: ='Pages 198, 199'!E69 -> -0.02631263816 | C61: ='Pages 198, 199'!F69 -> -0.0284460947 | E61: -0.05240517354 | F61: -0.02601919248 | G61: 0.001363540297
A62: 2012-05-01 | B62: ='Pages 198, 199'!E70 -> -0.01076010416 | C62: ='Pages 198, 199'!F70 -> -0.01919385507 | E62: -0.03685263954 | F62: -0.01676695284 | G62: 0.0006179064694
A63: 2012-06-01 | B63: ='Pages 198, 199'!E71 -> 0.01079435132 | C63: ='Pages 198, 199'!F71 -> 0.1095789944 | E63: -0.01529818406 | F63: 0.1120058966 | G63: -0.001713486822
A65: Average | B65: =AVERAGE(B4:B63) -> 0.02609253538 | C65: =AVERAGE(C4:C63) -> -0.002426902222
A66: Variance | B66: =_xlfn.VAR.S(B4:B63) -> 0.01247769069 | C66: =_xlfn.VAR.S(C4:C63) -> 0.01017518017 | D66: =getformula(C66) -> <-- =VAR.S(C4:C63) | F66: Covariance computation
A67: Standard deviation | B67: =_xlfn.STDEV.S(B4:B63) -> 0.1117035841 | C67: =_xlfn.STDEV.S(C4:C63) -> 0.1008720981 | D67: =getformula(C67) -> <-- =STDEV.S(C4:C63) | G67: =AVERAGE(G4:G63) -> 0.00195597416 | H67: =getformula(G67) -> <-- =AVERAGE(G4:G63)
B68: =SQRT(B66) -> 0.1117035841 | C68: =SQRT(C66) -> 0.1008720981 | D68: =getformula(C68) -> <-- =SQRT(C66) | G68: =_xlfn.COVARIANCE.P(B4:B63,C4:C63) -> 0.00195597416 | H68: =getformula(G68) -> <-- =COVARIANCE.P(B4:B63,C4:C63)
G69: =COVAR(B4:B63,C4:C63) -> 0.00195597416 | H69: =getformula(G69) -> <-- =COVAR(B4:B63,C4:C63)
B70: =_xlfn.VAR.P(B4:B63) -> 0.01226972918 | C70: =_xlfn.VAR.P(C4:C63) -> 0.01000559383 | D70: =getformula(C70) -> <-- =VAR.P(C4:C63) | G70: =AVERAGE(G4:G63)*60/59 -> 0.001989126265 | H70: =getformula(G70) -> <-- =AVERAGE(G4:G63)*60/59
B71: =_xlfn.STDEV.P(B4:B63) -> 0.1107688096 | C71: =_xlfn.STDEV.P(C4:C63) -> 0.1000279653 | D71: =getformula(C71) -> <-- =STDEV.P(C4:C63) | G71: =_xlfn.COVARIANCE.S(B4:B63,C4:C63) -> 0.001989126265 | H71: =getformula(G71) -> <-- =COVARIANCE.S(B4:B63,C4:C63)
B72: =SQRT(B70) -> 0.1107688096 | C72: =SQRT(C70) -> 0.1000279653 | D72: <-- =SQRT(C70)
F73: Correlation computation
G74: =CORREL(B4:B63,C4:C63) -> 0.1765323043 | H74: =getformula(G74) -> <-- =CORREL(B4:B63,C4:C63)
G75: =G68/(B71*C71) -> 0.1765323043 | H75: =getformula(G75) -> <-- =G68/(B71*C71)
G76: =G71/(B67*C67) -> 0.1765323043 | H76: =getformula(G76) -> <-- =G71/(B67*C67)

Sheet Page 202
A1: USING TRENDLINE ON APPLE, GOOGLE RETURNS
A3: Date | B3: AAPL | C3: Google
A4: 2007-07-02 | B4: ='Pages 198, 199'!E12 -> 0.07663322602 | C4: ='Pages 198, 199'!F12 -> 0.1074269523
A5: 2007-08-01 | B5: ='Pages 198, 199'!E13 -> 0.049743825 | C5: ='Pages 198, 199'!F13 -> -0.07473222165
A6: 2007-09-04 | B6: ='Pages 198, 199'!E14 -> 0.1027791973 | C6: ='Pages 198, 199'!F14 -> -0.01132533938
A7: 2007-10-01 | B7: ='Pages 198, 199'!E15 -> 0.2132557714 | C7: ='Pages 198, 199'!F15 -> -0.1403425645
A8: 2007-11-01 | B8: ='Pages 198, 199'!E16 -> -0.04154613135 | C8: ='Pages 198, 199'!F16 -> 0.04910077141
A9: 2007-12-03 | B9: ='Pages 198, 199'!E17 -> 0.08345624121 | C9: ='Pages 198, 199'!F17 -> 0.1097154822
A10: 2008-01-02 | B10: ='Pages 198, 199'!E18 -> -0.3807330936 | C10: ='Pages 198, 199'!F18 -> -0.1757734456
A11: 2008-02-01 | B11: ='Pages 198, 199'!E19 -> -0.07946417135 | C11: ='Pages 198, 199'!F19 -> 0.04373886275
A12: 2008-03-03 | B12: ='Pages 198, 199'!E20 -> 0.1378613107 | C12: ='Pages 198, 199'!F20 -> 0.02810681516
A13: 2008-04-01 | B13: ='Pages 198, 199'!E21 -> 0.1924328664 | C13: ='Pages 198, 199'!F21 -> 0.07548282413
A14: 2008-05-01 | B14: ='Pages 198, 199'!E22 -> 0.08165548653 | C14: ='Pages 198, 199'!F22 -> 0.04440137406
A15: 2008-06-02 | B15: ='Pages 198, 199'!E23 -> -0.11979831 | C15: ='Pages 198, 199'!F23 -> -0.02148777639
A16: 2008-07-01 | B16: ='Pages 198, 199'!E24 -> -0.05203539078 | C16: ='Pages 198, 199'!F24 -> -0.01070066225
A17: 2008-08-01 | B17: ='Pages 198, 199'!E25 -> 0.06444021495 | C17: ='Pages 198, 199'!F25 -> -0.06658223759
A18: 2008-09-02 | B18: ='Pages 198, 199'!E26 -> -0.3998183664 | C18: ='Pages 198, 199'!F26 -> 0.09925963395
A19: 2008-10-01 | B19: ='Pages 198, 199'!E27 -> -0.05488382926 | C19: ='Pages 198, 199'!F27 -> -0.1546043159
A20: 2008-11-03 | B20: ='Pages 198, 199'!E28 -> -0.149282911 | C20: ='Pages 198, 199'!F28 -> -0.1556098673
A21: 2008-12-01 | B21: ='Pages 198, 199'!E29 -> -0.08228434636 | C21: ='Pages 198, 199'!F29 -> 0.07454753853
A22: 2009-01-02 | B22: ='Pages 198, 199'!E30 -> 0.05449262333 | C22: ='Pages 198, 199'!F30 -> -0.08587764845
A23: 2009-02-02 | B23: ='Pages 198, 199'!E31 -> -0.009139608873 | C23: ='Pages 198, 199'!F31 -> 0.08748510078
A24: 2009-03-02 | B24: ='Pages 198, 199'!E32 -> 0.162989091 | C24: ='Pages 198, 199'!F32 -> 0.07928369075
A25: 2009-04-01 | B25: ='Pages 198, 199'!E33 -> 0.1798292349 | C25: ='Pages 198, 199'!F33 -> 0.07584021372
A26: 2009-05-01 | B26: ='Pages 198, 199'!E34 -> 0.07632506051 | C26: ='Pages 198, 199'!F34 -> -0.07374995168
A27: 2009-06-01 | B27: ='Pages 198, 199'!E35 -> 0.04759380083 | C27: ='Pages 198, 199'!F35 -> 0.005942822721
A28: 2009-07-01 | B28: ='Pages 198, 199'!E36 -> 0.1372893301 | C28: ='Pages 198, 199'!F36 -> 0.1569234269
A29: 2009-08-03 | B29: ='Pages 198, 199'!E37 -> 0.02907321776 | C29: ='Pages 198, 199'!F37 -> -0.0615000331
A30: 2009-09-01 | B30: ='Pages 198, 199'!E38 -> 0.09703273079 | C30: ='Pages 198, 199'!F38 -> -0.08382916974
A31: 2009-10-01 | B31: ='Pages 198, 199'!E39 -> 0.01685207729 | C31: ='Pages 198, 199'!F39 -> -0.07808455498
A32: 2009-11-02 | B32: ='Pages 198, 199'!E40 -> 0.05876925838 | C32: ='Pages 198, 199'!F40 -> -0.07142311149
A33: 2009-12-01 | B33: ='Pages 198, 199'!E41 -> 0.05271042794 | C33: ='Pages 198, 199'!F41 -> -0.04116771965
A34: 2010-01-04 | B34: ='Pages 198, 199'!E42 -> -0.09276987 | C34: ='Pages 198, 199'!F42 -> -0.04964935271
A35: 2010-02-01 | B35: ='Pages 198, 199'!E43 -> 0.06334677724 | C35: ='Pages 198, 199'!F43 -> -0.01039564928
A36: 2010-03-01 | B36: ='Pages 198, 199'!E44 -> 0.1384309137 | C36: ='Pages 198, 199'!F44 -> -0.05229917769
A37: 2010-04-01 | B37: ='Pages 198, 199'!E45 -> 0.1052796613 | C37: ='Pages 198, 199'!F45 -> -0.1289635721
A38: 2010-05-03 | B38: ='Pages 198, 199'!E46 -> -0.01625612569 | C38: ='Pages 198, 199'!F46 -> -0.02935856946
A39: 2010-06-01 | B39: ='Pages 198, 199'!E47 -> -0.02104678306 | C39: ='Pages 198, 199'!F47 -> 0.001596405471
A40: 2010-07-01 | B40: ='Pages 198, 199'!E48 -> 0.02248610799 | C40: ='Pages 198, 199'!F48 -> -0.09564994153
A41: 2010-08-02 | B41: ='Pages 198, 199'!E49 -> -0.05657549339 | C41: ='Pages 198, 199'!F49 -> -0.04892669226
A42: 2010-09-01 | B42: ='Pages 198, 199'!E50 -> 0.1546206875 | C42: ='Pages 198, 199'!F50 -> 0.2042885906
A43: 2010-10-01 | B43: ='Pages 198, 199'!E51 -> 0.05895024856 | C43: ='Pages 198, 199'!F51 -> 0.1084390313
A44: 2010-11-01 | B44: ='Pages 198, 199'!E52 -> 0.03323129366 | C44: ='Pages 198, 199'!F52 -> 0.1455895051
A45: 2010-12-01 | B45: ='Pages 198, 199'!E53 -> 0.03601405443 | C45: ='Pages 198, 199'!F53 -> 0.02232654849
A46: 2011-01-03 | B46: ='Pages 198, 199'!E54 -> 0.0506544495 | C46: ='Pages 198, 199'!F54 -> 0.1054196168
A47: 2011-02-01 | B47: ='Pages 198, 199'!E55 -> 0.04011916596 | C47: ='Pages 198, 199'!F55 -> 0.1068790612
A48: 2011-03-01 | B48: ='Pages 198, 199'!E56 -> -0.01339585671 | C48: ='Pages 198, 199'!F56 -> -0.01984393918
A49: 2011-04-01 | B49: ='Pages 198, 199'!E57 -> 0.004637589899 | C49: ='Pages 198, 199'!F57 -> -0.2652921566
A50: 2011-05-02 | B50: ='Pages 198, 199'!E58 -> -0.006590659423 | C50: ='Pages 198, 199'!F58 -> 0.06739784798
A51: 2011-06-01 | B51: ='Pages 198, 199'!E59 -> -0.03558532018 | C51: ='Pages 198, 199'!F59 -> 0.1803458384
A52: 2011-07-01 | B52: ='Pages 198, 199'!E60 -> 0.1512482171 | C52: ='Pages 198, 199'!F60 -> 0.2032482031
A53: 2011-08-01 | B53: ='Pages 198, 199'!E61 -> -0.01457507325 | C53: ='Pages 198, 199'!F61 -> 0.002195771135
A54: 2011-09-01 | B54: ='Pages 198, 199'!E62 -> -0.009162760705 | C54: ='Pages 198, 199'!F62 -> 0.02000066671
A55: 2011-10-03 | B55: ='Pages 198, 199'!E63 -> 0.05970479201 | C55: ='Pages 198, 199'!F63 -> -0.220195285
A56: 2011-11-01 | B56: ='Pages 198, 199'!E64 -> -0.05739967783 | C56: ='Pages 198, 199'!F64 -> -0.09618316109
A57: 2011-12-01 | B57: ='Pages 198, 199'!E65 -> 0.0579430353 | C57: ='Pages 198, 199'!F65 -> -0.01024149405
A58: 2012-01-03 | B58: ='Pages 198, 199'!E66 -> 0.1196578204 | C58: ='Pages 198, 199'!F66 -> 0.02459696
A59: 2012-02-01 | B59: ='Pages 198, 199'!E67 -> 0.1725325928 | C59: ='Pages 198, 199'!F67 -> -0.04858834792
A60: 2012-03-01 | B60: ='Pages 198, 199'!E68 -> 0.1001018936 | C60: ='Pages 198, 199'!F68 -> -0.05475477501
A61: 2012-04-02 | B61: ='Pages 198, 199'!E69 -> -0.02631263816 | C61: ='Pages 198, 199'!F69 -> -0.0284460947
A62: 2012-05-01 | B62: ='Pages 198, 199'!E70 -> -0.01076010416 | C62: ='Pages 198, 199'!F70 -> -0.01919385507
A63: 2012-06-01 | B63: ='Pages 198, 199'!E71 -> 0.01079435132 | C63: ='Pages 198, 199'!F71 -> 0.1095789944

Sheet Page 203
A1: CALCULATING THE MEAN AND STANDARD DEVIATION OF A PORTFOLIO
A2: Proportion of AAPL | B2: 0.5 | D2: <-- Weight based on $ value in portfolio
A3: Proportion of GOOG | B3: =1-B2 -> 0.5 | C3: =getformula(B3) -> <-- =1-B2 | D3: <-- Weight based on $ value in portfolio
B5: AAPL return | C5: GOOG return | D5: Portfolio return | G5: Asset returns | H5: AAPL | I5: GOOG
A6: ='Page 202'!A4 -> 2007-07-02 | B6: ='Page 202'!B4 -> 0.07663322602 | C6: ='Page 202'!C4 -> 0.1074269523 | D6: =$B$2*B6+$B$3*C6 -> 0.09203008916 | E6: =getformula(D6) -> <-- =$B$2*B6+$B$3*C6 | G6: Mean return | H6: =AVERAGE(B6:B65) -> 0.02609253538 | I6: =AVERAGE(C6:C65) -> -0.002426902222 | J6: =getformula(I6) -> <-- =AVERAGE(C6:C65)
A7: ='Page 202'!A5 -> 2007-08-01 | B7: ='Page 202'!B5 -> 0.049743825 | C7: ='Page 202'!C5 -> -0.07473222165 | D7: =$B$2*B7+$B$3*C7 -> -0.01249419832 | E7: =getformula(D7) -> <-- =$B$2*B7+$B$3*C7 | G7: Variance | H7: =_xlfn.VAR.S(B6:B65) -> 0.01247769069 | I7: =_xlfn.VAR.S(C6:C65) -> 0.01017518017 | J7: =getformula(I7) -> <-- =VAR.S(C6:C65)
A8: ='Page 202'!A6 -> 2007-09-04 | B8: ='Page 202'!B6 -> 0.1027791973 | C8: ='Page 202'!C6 -> -0.01132533938 | D8: 0.04572692897 | E8: =getformula(D8) -> <-- =$B$2*B8+$B$3*C8 | G8: Standard deviation | H8: =_xlfn.STDEV.S(B6:B65) -> 0.1117035841 | I8: =_xlfn.STDEV.S(C6:C65) -> 0.1008720981 | J8: <-- =STDEV.S(C6:C65)
A9: ='Page 202'!A7 -> 2007-10-01 | B9: ='Page 202'!B7 -> 0.2132557714 | C9: ='Page 202'!C7 -> -0.1403425645 | D9: 0.03645660349 | G9: Covariance | H9: =_xlfn.COVARIANCE.S(B6:B65,C6:C65) -> 0.001989126265 | I9: =getformula(H9) -> <-- =COVARIANCE.S(B6:B65,C6:C65)
A10: ='Page 202'!A8 -> 2007-11-01 | B10: ='Page 202'!B8 -> -0.04154613135 | C10: ='Page 202'!C8 -> 0.04910077141 | D10: 0.003777320031
A11: ='Page 202'!A9 -> 2007-12-03 | B11: ='Page 202'!B9 -> 0.08345624121 | C11: ='Page 202'!C9 -> 0.1097154822 | D11: 0.0965858617 | G11: Portfolio mean return
A12: ='Page 202'!A10 -> 2008-01-02 | B12: ='Page 202'!B10 -> -0.3807330936 | C12: ='Page 202'!C10 -> -0.1757734456 | D12: -0.2782532696 | H12: =AVERAGE(D6:D65) -> 0.01183281658 | I12: =getformula(H12) -> <-- =AVERAGE(D6:D65)
A13: ='Page 202'!A11 -> 2008-02-01 | B13: ='Page 202'!B11 -> -0.07946417135 | C13: ='Page 202'!C11 -> 0.04373886275 | D13: -0.0178626543 | H13: =B2*H6+B3*I6 -> 0.01183281658 | I13: =getformula(H13) -> <-- =B2*H6+B3*I6
A14: ='Page 202'!A12 -> 2008-03-03 | B14: ='Page 202'!B12 -> 0.1378613107 | C14: ='Page 202'!C12 -> 0.02810681516 | D14: 0.08298406293 | G14: Portfolio return variance
A15: ='Page 202'!A13 -> 2008-04-01 | B15: ='Page 202'!B13 -> 0.1924328664 | C15: ='Page 202'!C13 -> 0.07548282413 | D15: 0.1339578453 | H15: =_xlfn.VAR.S(D6:D65) -> 0.006657780847 | I15: =getformula(H15) -> <-- =VAR.S(D6:D65)
A16: ='Page 202'!A14 -> 2008-05-01 | B16: ='Page 202'!B14 -> 0.08165548653 | C16: ='Page 202'!C14 -> 0.04440137406 | D16: 0.0630284303 | H16: =B2^2*H7+B3^2*I7+2*B2*B3*H9 -> 0.006657780847 | I16: =getformula(H16) -> <-- =B2^2*H7+B3^2*I7+2*B2*B3*H9
A17: ='Page 202'!A15 -> 2008-06-02 | B17: ='Page 202'!B15 -> -0.11979831 | C17: ='Page 202'!C15 -> -0.02148777639 | D17: -0.07064304319 | G17: Portfolio return standard deviation
A18: ='Page 202'!A16 -> 2008-07-01 | B18: ='Page 202'!B16 -> -0.05203539078 | C18: ='Page 202'!C16 -> -0.01070066225 | D18: -0.03136802652 | H18: =SQRT(H16) -> 0.08159522564 | I18: =getformula(H18) -> <-- =SQRT(H16)
A19: ='Page 202'!A17 -> 2008-08-01 | B19: ='Page 202'!B17 -> 0.06444021495 | C19: ='Page 202'!C17 -> -0.06658223759 | D19: -0.001071011319 | H19: =_xlfn.STDEV.S(D6:D65) -> 0.08159522564 | I19: =getformula(H19) -> <-- =STDEV.S(D6:D65)
A20: ='Page 202'!A18 -> 2008-09-02 | B20: ='Page 202'!B18 -> -0.3998183664 | C20: ='Page 202'!C18 -> 0.09925963395 | D20: -0.1502793662
A21: ='Page 202'!A19 -> 2008-10-01 | B21: ='Page 202'!B19 -> -0.05488382926 | C21: ='Page 202'!C19 -> -0.1546043159 | D21: -0.1047440726 | G21: Variance/Covariance Matrix
A22: ='Page 202'!A20 -> 2008-11-03 | B22: ='Page 202'!B20 -> -0.149282911 | C22: ='Page 202'!C20 -> -0.1556098673 | D22: -0.1524463891 | H22: AAPL | I22: GOOG
A23: ='Page 202'!A21 -> 2008-12-01 | B23: ='Page 202'!B21 -> -0.08228434636 | C23: ='Page 202'!C21 -> 0.07454753853 | D23: -0.003868403914 | G23: AAPL | H23: =H7 -> 0.01247769069 | I23: =H9 -> 0.001989126265
A24: ='Page 202'!A22 -> 2009-01-02 | B24: ='Page 202'!B22 -> 0.05449262333 | C24: ='Page 202'!C22 -> -0.08587764845 | D24: -0.01569251256 | G24: GOOG | H24: =I23 -> 0.001989126265 | I24: =I7 -> 0.01017518017
A25: ='Page 202'!A23 -> 2009-02-02 | B25: ='Page 202'!B23 -> -0.009139608873 | C25: ='Page 202'!C23 -> 0.08748510078 | D25: 0.03917274595
A26: ='Page 202'!A24 -> 2009-03-02 | B26: ='Page 202'!B24 -> 0.162989091 | C26: ='Page 202'!C24 -> 0.07928369075 | D26: 0.1211363909
A27: ='Page 202'!A25 -> 2009-04-01 | B27: ='Page 202'!B25 -> 0.1798292349 | C27: ='Page 202'!C25 -> 0.07584021372 | D27: 0.1278347243
A28: ='Page 202'!A26 -> 2009-05-01 | B28: ='Page 202'!B26 -> 0.07632506051 | C28: ='Page 202'!C26 -> -0.07374995168 | D28: 0.001287554417
A29: ='Page 202'!A27 -> 2009-06-01 | B29: ='Page 202'!B27 -> 0.04759380083 | C29: ='Page 202'!C27 -> 0.005942822721 | D29: 0.02676831178
A30: ='Page 202'!A28 -> 2009-07-01 | B30: ='Page 202'!B28 -> 0.1372893301 | C30: ='Page 202'!C28 -> 0.1569234269 | D30: 0.1471063785
A31: ='Page 202'!A29 -> 2009-08-03 | B31: ='Page 202'!B29 -> 0.02907321776 | C31: ='Page 202'!C29 -> -0.0615000331 | D31: -0.01621340767
A32: ='Page 202'!A30 -> 2009-09-01 | B32: ='Page 202'!B30 -> 0.09703273079 | C32: ='Page 202'!C30 -> -0.08382916974 | D32: 0.006601780526
A33: ='Page 202'!A31 -> 2009-10-01 | B33: ='Page 202'!B31 -> 0.01685207729 | C33: ='Page 202'!C31 -> -0.07808455498 | D33: -0.03061623884
A34: ='Page 202'!A32 -> 2009-11-02 | B34: ='Page 202'!B32 -> 0.05876925838 | C34: ='Page 202'!C32 -> -0.07142311149 | D34: -0.006326926554
A35: ='Page 202'!A33 -> 2009-12-01 | B35: ='Page 202'!B33 -> 0.05271042794 | C35: ='Page 202'!C33 -> -0.04116771965 | D35: 0.005771354145
A36: ='Page 202'!A34 -> 2010-01-04 | B36: ='Page 202'!B34 -> -0.09276987 | C36: ='Page 202'!C34 -> -0.04964935271 | D36: -0.07120961136
A37: ='Page 202'!A35 -> 2010-02-01 | B37: ='Page 202'!B35 -> 0.06334677724 | C37: ='Page 202'!C35 -> -0.01039564928 | D37: 0.02647556398
A38: ='Page 202'!A36 -> 2010-03-01 | B38: ='Page 202'!B36 -> 0.1384309137 | C38: ='Page 202'!C36 -> -0.05229917769 | D38: 0.043065868
A39: ='Page 202'!A37 -> 2010-04-01 | B39: ='Page 202'!B37 -> 0.1052796613 | C39: ='Page 202'!C37 -> -0.1289635721 | D39: -0.01184195539
A40: ='Page 202'!A38 -> 2010-05-03 | B40: ='Page 202'!B38 -> -0.01625612569 | C40: ='Page 202'!C38 -> -0.02935856946 | D40: -0.02280734757
A41: ='Page 202'!A39 -> 2010-06-01 | B41: ='Page 202'!B39 -> -0.02104678306 | C41: ='Page 202'!C39 -> 0.001596405471 | D41: -0.009725188795
A42: ='Page 202'!A40 -> 2010-07-01 | B42: ='Page 202'!B40 -> 0.02248610799 | C42: ='Page 202'!C40 -> -0.09564994153 | D42: -0.03658191677
A43: ='Page 202'!A41 -> 2010-08-02 | B43: ='Page 202'!B41 -> -0.05657549339 | C43: ='Page 202'!C41 -> -0.04892669226 | D43: -0.05275109283
A44: ='Page 202'!A42 -> 2010-09-01 | B44: ='Page 202'!B42 -> 0.1546206875 | C44: ='Page 202'!C42 -> 0.2042885906 | D44: 0.179454639
A45: ='Page 202'!A43 -> 2010-10-01 | B45: ='Page 202'!B43 -> 0.05895024856 | C45: ='Page 202'!C43 -> 0.1084390313 | D45: 0.08369463993
A46: ='Page 202'!A44 -> 2010-11-01 | B46: ='Page 202'!B44 -> 0.03323129366 | C46: ='Page 202'!C44 -> 0.1455895051 | D46: 0.08941039936
A47: ='Page 202'!A45 -> 2010-12-01 | B47: ='Page 202'!B45 -> 0.03601405443 | C47: ='Page 202'!C45 -> 0.02232654849 | D47: 0.02917030146
A48: ='Page 202'!A46 -> 2011-01-03 | B48: ='Page 202'!B46 -> 0.0506544495 | C48: ='Page 202'!C46 -> 0.1054196168 | D48: 0.07803703316
A49: ='Page 202'!A47 -> 2011-02-01 | B49: ='Page 202'!B47 -> 0.04011916596 | C49: ='Page 202'!C47 -> 0.1068790612 | D49: 0.07349911357
A50: ='Page 202'!A48 -> 2011-03-01 | B50: ='Page 202'!B48 -> -0.01339585671 | C50: ='Page 202'!C48 -> -0.01984393918 | D50: -0.01661989794
A51: ='Page 202'!A49 -> 2011-04-01 | B51: ='Page 202'!B49 -> 0.004637589899 | C51: ='Page 202'!C49 -> -0.2652921566 | D51: -0.1303272833
A52: ='Page 202'!A50 -> 2011-05-02 | B52: ='Page 202'!B50 -> -0.006590659423 | C52: ='Page 202'!C50 -> 0.06739784798 | D52: 0.03040359428
A53: ='Page 202'!A51 -> 2011-06-01 | B53: ='Page 202'!B51 -> -0.03558532018 | C53: ='Page 202'!C51 -> 0.1803458384 | D53: 0.07238025909
A54: ='Page 202'!A52 -> 2011-07-01 | B54: ='Page 202'!B52 -> 0.1512482171 | C54: ='Page 202'!C52 -> 0.2032482031 | D54: 0.1772482101
A55: ='Page 202'!A53 -> 2011-08-01 | B55: ='Page 202'!B53 -> -0.01457507325 | C55: ='Page 202'!C53 -> 0.002195771135 | D55: -0.006189651056
A56: ='Page 202'!A54 -> 2011-09-01 | B56: ='Page 202'!B54 -> -0.009162760705 | C56: ='Page 202'!C54 -> 0.02000066671 | D56: 0.005418953001
A57: ='Page 202'!A55 -> 2011-10-03 | B57: ='Page 202'!B55 -> 0.05970479201 | C57: ='Page 202'!C55 -> -0.220195285 | D57: -0.08024524651
A58: ='Page 202'!A56 -> 2011-11-01 | B58: ='Page 202'!B56 -> -0.05739967783 | C58: ='Page 202'!C56 -> -0.09618316109 | D58: -0.07679141946
A59: ='Page 202'!A57 -> 2011-12-01 | B59: ='Page 202'!B57 -> 0.0579430353 | C59: ='Page 202'!C57 -> -0.01024149405 | D59: 0.02385077062
A60: ='Page 202'!A58 -> 2012-01-03 | B60: ='Page 202'!B58 -> 0.1196578204 | C60: ='Page 202'!C58 -> 0.02459696 | D60: 0.07212739018
A61: ='Page 202'!A59 -> 2012-02-01 | B61: ='Page 202'!B59 -> 0.1725325928 | C61: ='Page 202'!C59 -> -0.04858834792 | D61: 0.06197212242
A62: ='Page 202'!A60 -> 2012-03-01 | B62: ='Page 202'!B60 -> 0.1001018936 | C62: ='Page 202'!C60 -> -0.05475477501 | D62: 0.0226735593
A63: ='Page 202'!A61 -> 2012-04-02 | B63: ='Page 202'!B61 -> -0.02631263816 | C63: ='Page 202'!C61 -> -0.0284460947 | D63: -0.02737936643
A64: ='Page 202'!A62 -> 2012-05-01 | B64: ='Page 202'!B62 -> -0.01076010416 | C64: ='Page 202'!C62 -> -0.01919385507 | D64: -0.01497697961
A65: ='Page 202'!A63 -> 2012-06-01 | B65: ='Page 202'!B63 -> 0.01079435132 | C65: ='Page 202'!C63 -> 0.1095789944 | D65: 0.06018667285

Sheet Page 204
A1: CALCULATING THE MEAN AND STANDARD DEVIATION OF A PORTFOLIO
A2: Asset returns | B2: AAPL | C2: GOOG
A3: Mean return | B3: ='Pages 198, 199'!B2 -> 0.02609253538 | C3: ='Pages 198, 199'!C2 -> -0.002426902222
A4: Variance | B4: ='Pages 198, 199'!B3 -> 0.01247769069 | C4: ='Pages 198, 199'!C3 -> 0.01017518017
A5: Standard deviation | B5: ='Pages 198, 199'!B4 -> 0.1117035841 | C5: ='Pages 198, 199'!C4 -> 0.1008720981
A6: Covariance | B6: ='Page 203'!H9 -> 0.001989126265
A8: Proportion of AAPL | B8: 0.5
A10: Portfolio mean return | B10: =B8*B3+(1-B8)*C3 -> 0.01183281658 | C10: =getformula(B10) -> <-- =B8*B3+(1-B8)*C3
A11: Portfolio return variance | B11: =B8^2*B4+(1-B8)^2*C4+2*B8*(1-B8)*B6 -> 0.006657780847 | C11: =getformula(B11) -> <-- =B8^2*B4+(1-B8)^2*C4+2*B8*(1-B8)*B6
A12: Portfolio return standard deviation | B12: =SQRT(B11) -> 0.08159522564 | C12: =getformula(B12) -> <-- =SQRT(B11)
A14: Data table—varying the proportion of AAPL
B15: Portfolio standard deviation | C15: Portfolio mean return
A16: Proportion of AAPL | B16: =B12 -> 0.08159522564 | C16: =B10 -> 0.01183281658 | D16: =getformula(C16)&", table header" -> <-- =B10, table header
A17: -0.5 | B17: 0.1517560169 | C17: -0.01668662102
A18: -0.4 | B18: 0.1403992957 | C18: -0.01383467726
A19: -0.3 | B19: 0.1294894905 | C19: -0.0109827335
A20: -0.2 | B20: 0.1191494291 | C20: -0.008130789743
A21: -0.1 | B21: 0.109540573 | C21: -0.005278845983
A22: 0 | B22: 0.1008720981 | C22: -0.002426902222
A23: 0.1 | B23: 0.09340618594 | C23: 0.0004250415384
A24: 0.2 | B24: 0.08745137701 | C24: 0.003276985299
A25: 0.3 | B25: 0.08333224752 | C25: 0.006128929059
A26: 0.4 | B26: 0.08132819916 | C26: 0.00898087282
A27: 0.5 | B27: 0.08159522564 | C27: 0.01183281658
A28: 0.6 | B28: 0.08411170004 | C28: 0.01468476034
A29: 0.7 | B29: 0.08868634441 | C29: 0.0175367041
A30: 0.8 | B30: 0.09502236397 | C30: 0.02038864786
A31: 0.9 | B31: 0.1027945718 | C31: 0.02324059162
A32: 1 | B32: 0.1117035841 | C32: 0.02609253538
A33: 1.1 | B33: 0.1214995875 | C33: 0.02894447914
A34: 1.2 | B34: 0.131985231 | C34: 0.0317964229
A35: 1.3 | B35: 0.1430088983 | C35: 0.03464836666
A36: 1.4 | B36: 0.1544554342 | C36: 0.03750031043
A37: 1.5 | B37: 0.1662375099 | C37: 0.04035225419
A39: Portfolio Variance with 3 Assets
D48: 1 | E48: 2 | F48: 3
D49: ="W"&D$48 -> W1 | E49: ="W"&E$48 -> W2 | F49: W3
B50: 1 | C50: ="W"&$B50 -> W1 | D50: ="σ"&$B50&D$48 -> σ11 | E50: ="σ"&$B50&E$48 -> σ12 | F50: σ13 | G50: Var-Covar Matrix
B51: 2 | C51: ="W"&$B51 -> W2 | D51: ="σ"&$B51&D$48 -> σ21 | E51: σ22 | F51: σ23
B52: 3 | C52: W3 | D52: σ31 | E52: σ32 | F52: σ33

Sheet Pages 207-209
A1: A FOUR-ASSET PORTFOLIO PROBLEM
A2: Variance-covariance, S Symmetric Matrix Main Diagonal is Variance | F2: Mean returns E(r)
A3: 0.1 | B3: 0.01 | C3: 0.03 | D3: 0.05 | F3: 0.06
A4: =B3 -> 0.01 | B4: 0.3 | C4: 0.06 | D4: -0.04 | F4: 0.08 | H4: Alternate Calculations Using Matrix Operations:
A5: =C3 -> 0.03 | B5: =C4 -> 0.06 | C5: 0.4 | D5: 0.02 | F5: 0.1
A6: =D3 -> 0.05 | B6: =D4 -> -0.04 | C6: =D5 -> 0.02 | D6: 0.5 | F6: 0.15 | I6: Portfolios x & y:
B7: Asset Weights | I7: Means | J7: Var/Covar
A8: Portfolio x | B8: 0.2 | C8: 0.3 | D8: 0.4 | E8: =1-SUM(B8:D8) -> 0.1 | F8: =getformula(E8) -> <-- =1-SUM(B8:D8) | I8: =MMULT(B8:E9,F3:F6) -> 0.091 | J8: =MMULT(MMULT(B8:E9,A3:D6),TRANSPOSE(B8:E9)) -> 0.1216 | K8: 0.0714
A9: Portfolio y | B9: 0.2 | C9: 0.1 | D9: 0.1 | E9: =1-SUM(B9:D9) -> 0.6 | F9: <-- =1-SUM(B9:D9) | I9: 0.12 | J9: 0.0714 | K9: 0.2034
A11: Portfolio x and y statistics: Mean, variance, covariance, correlation | I11: Combining Portfolios x & y: | L11: Weights
A12: Mean, E(rx) | B12: =MMULT(B8:E8,F3:F6) -> 0.091 | D12: Mean, E(ry) | E12: =MMULT(B9:E9,F3:F6) -> 0.12 | F12: =getformula(E12) -> <-- =MMULT(B9:E9,F3:F6) | I12: Mean | J12: =MMULT(TRANSPOSE(I8:I9),L12:L13) -> 0.1113 | L12: =B18 -> 0.3
A13: Variance sx2 | B13: =MMULT(MMULT(B8:E8,A3:D6),TRANSPOSE(B8:E8)) -> 0.1216 | D13: Variance sy2 | E13: =MMULT(MMULT(B9:E9,A3:D6),TRANSPOSE(B9:E9)) -> 0.2034 | F13: =getformula(E13) -> <-- =MMULT(MMULT(B9:E9,A3:D6),TRANSPOSE(B9:E9)) | I13: Variance | J13: =MMULT(MMULT(TRANSPOSE(L12:L13),J8:K9),L12:L13) -> 0.140598 | L13: =1-L12 -> 0.7
A14: Covariance(x,y) | B14: =MMULT(MMULT(B8:E8,A3:D6),TRANSPOSE(B9:E9)) -> 0.0714 | I14: StDev | J14: =SQRT(J13) -> 0.3749639983
A15: Correlation rxy | B15: =B14/SQRT(B13*E13) -> 0.4540001016 | C15: =getformula(B15) -> <-- =B14/SQRT(B13*E13)
H16: Matrix Notation for X-Y Variance-Covariance Matrix
A17: Calculating returns of combinations of Portfolio x and Portfolio y | I17: Sxy = WSW'
A18: Proportion of x | B18: 0.3 | J18: x | K18: y
A19: Mean portfolio return, E(rp) | B19: =B18*B12+(1-B18)*E12 -> 0.1113 | C19: =getformula(B19) -> <-- =B18*B12+(1-B18)*E12 | I19: x | J19: =MMULT(MMULT(B8:E9,A3:D6),TRANSPOSE(B8:E9)) -> 0.1216 | K19: 0.0714
A20: Portfolio variance sp2 | B20: =B18^2*B13+(1-B18)^2*E13+2*B18*(1-B18)*B14 -> 0.140598 | C20: =getformula(B20) -> <-- =B18^2*B13+(1-B18)^2*E13+2*B18*(1-B18)*B14 | I20: y | J20: 0.0714 | K20: 0.2034
A21: Portfolio standard deviation sp | B21: =SQRT(B20) -> 0.3749639983 | C21: =getformula(B21) -> <-- =SQRT(B20)
A23: Table of returns (using Data Table)
A24: Proportion of x | B24: Standard deviation | C24: Mean
B25: =B21 -> 0.3749639983 | C25: =B19 -> 0.1113
A26: -0.5 | B26: 0.6172114711 | C26: 0.1345
A27: -0.4 | B27: 0.5815083834 | C27: 0.1316
A28: -0.3 | B28: 0.5468070958 | C28: 0.1287 | L28: Note on Array Functions: If you have a current version of Microsoft 365, then
A29: -0.2 | B29: 0.513310822 | C29: 0.1258 | L29: you can simply enter the formula in the top-left-cell of the output range, then press
A30: -0.1 | B30: 0.4812712333 | C30: 0.1229 | L30: ENTER to confirm the formula as a dynamic array formula. Otherwise, the formula
A31: 0 | B31: 0.4509988914 | C31: 0.12 | L31: must be entered as a legacy array formula by first selecting the output range, entering
A32: 0.1 | B32: 0.4228735035 | C32: 0.1171 | L32: the formula in the top-left-cell of the output range, and then pressing
A33: 0.2 | B33: 0.39735123 | C33: 0.1142 | L33: CTRL+SHIFT+ENTER to confirm it. Excel inserts curly brackets at the beginning and
A34: 0.3 | B34: 0.3749639983 | C34: 0.1113 | L34: end of the formula for you.
A35: 0.4 | B35: 0.3563032416 | C35: 0.1084
A36: 0.5 | B36: 0.3419795316 | C36: 0.1055
A37: 0.6 | B37: 0.3325537551 | C37: 0.1026
A38: 0.7 | B38: 0.328447865 | C38: 0.0997
A39: 0.8 | B39: 0.3298605766 | C39: 0.0968
A40: 0.9 | B40: 0.3367224376 | C40: 0.0939
A41: 1 | B41: 0.3487119155 | C41: 0.091
A42: 1.1 | B42: 0.3653245133 | C42: 0.0881
A43: 1.2 | B43: 0.3859637289 | C43: 0.0852
A44: 1.3 | B44: 0.4100219506 | C44: 0.0823
A45: 1.4 | B45: 0.4369347777 | C45: 0.0794

Sheet Page 212 CML
A1: A FOUR-ASSET PORTFOLIO PROBLEM
A2: Variance-covariance, S | F2: Mean returns E(r) | G2: This sheet is similar to previous. Individual stocks are added to chart below.
A3: 0.1 | B3: 0.01 | C3: 0.03 | D3: 0.05 | E3: Stock1 | F3: 0.06
A4: 0.01 | B4: 0.3 | C4: 0.06 | D4: -0.04 | E4: Stock2 | F4: 0.08 | H4: The Sharpe Ratio measures excess return per unit of risk for an asset
A5: 0.03 | B5: 0.06 | C5: 0.4 | D5: 0.02 | E5: Stock3 | F5: 0.1 | H5: (stock) or portfolio. It equals (Ri-Rf)/σi, where σi is the standard deviation
A6: 0.05 | B6: -0.04 | C6: 0.02 | D6: 0.5 | E6: Stock4 | F6: 0.15 | H6: of the rate of return on asset i (assuming Rf is constant). σi is a total risk
H7: measure (also called volatility) and may be estimated from historical data.
A8: Portfolio x | B8: 0.1924206645 | C8: 0.2551368377 | D8: 0.1949369829 | E8: =1-SUM(B8:D8) -> 0.3575055149 | F8: <-- Weights Must Maximize X-Sharpe Ratio | H8: Riskfree | I8: 0.03
A9: Portfolio y | B9: 0.6062379135 | C9: 0.2070930079 | D9: 0.09420546969 | E9: =1-SUM(B9:D9) -> 0.09246360897 | F9: <-- Weights Must Minimize Y-Risk | H9: Sharpe | I9: =(B12-I8)/B13^0.5 -> 0.2224460378
J10: X | K10: Y
A11: Portfolio x and y statistics: Mean, variance, covariance, correlation | J11: 0 | K11: =I8 -> 0.03 | L11: Riskfree
A12: Mean, E(rx) | B12: =MMULT(B8:E8,F3:F6) -> 0.1050757124 | D12: Mean, E(ry) | E12: =MMULT(B9:E9,F3:F6) -> 0.07623180375 | F12: =getformula(E12) -> <-- {=MMULT(B9:E9,F3:F6)} | J12: =B13^0.5 -> 0.3375007852 | K12: =B12 -> 0.1050757124 | L12: M
A13: Variance sx2 | B13: =MMULT(MMULT(B8:E8,A3:D6),TRANSPOSE(B8:E8)) -> 0.11390678 | D13: Variance sy2 | E13: =MMULT(MMULT(B9:E9,A3:D6),TRANSPOSE(B9:E9)) -> 0.07014407853 | F13: =getformula(E13) -> <-- {=MMULT(MMULT(B9:E9,A3:D6),TRANSPOSE(B9:E9))} | J13: =B45 -> 0.6238381298 | K13: =I9*J13+I8 -> 0.1687703202 | L13: CML
A14: Covariance(x,y) | B14: =MMULT(MMULT(B8:E8,A3:D6),TRANSPOSE(B9:E9)) -> 0.07014409595 | J14: =E13^0.5 -> 0.264847274 | K14: =E12 -> 0.07623180375 | L14: Min Risk
A15: Correlation rxy | B15: =B14/SQRT(B13*E13) -> 0.7847310329 | C15: =getformula(B15) -> <-- =B14/SQRT(B13*E13) | J15: =J12 -> 0.3375007852 | K15: =K12 -> 0.1050757124 | L15: M
A17: Calculating returns of combinations of Portfolio x and Portfolio y
A18: Proportion of x | B18: 0.4
A19: Mean portfolio return, E(rp) | B19: =B18*B12+(1-B18)*E12 -> 0.08776936722 | C19: =getformula(B19) -> <-- =B18*B12+(1-B18)*E12
A20: Portfolio variance sp2 | B20: =B18^2*B13+(1-B18)^2*E13+2*B18*(1-B18)*B14 -> 0.07714611912 | C20: =getformula(B20) -> <-- =B18^2*B13+(1-B18)^2*E13+2*B18*(1-B18)*B14
A21: Portfolio standard deviation sp | B21: =SQRT(B20) -> 0.2777519021 | C21: =getformula(B21) -> <-- =SQRT(B20)
A23: Table of returns (using Data Table)
A24: Proportion of x | B24: Standard deviation | C24: Mean
B25: =B21 -> 0.2777519021 | C25: =B19 -> 0.08776936722
A26: -1 | B26: 0.337500682 | C26: 0.0473878951
A27: -0.8 | B27: 0.3132924469 | C27: 0.05315667683
A28: -0.6 | B28: 0.2930846595 | C28: 0.05892545856
A29: -0.4 | B29: 0.2777518519 | C29: 0.06469424029
A30: -0.2 | B30: 0.2681316435 | C30: 0.07046302202
A31: 0 | B31: 0.264847274 | C31: 0.07623180375
A32: 0.2 | B32: 0.2681316695 | C32: 0.08200058548
A33: 0.4 | B33: 0.2777519021 | C33: 0.08776936722
A34: 0.6 | B34: 0.2930847308 | C34: 0.09353814895
A35: 0.8 | B35: 0.3132925359 | C35: 0.09930693068
A36: 1 | B36: 0.3375007852 | C36: 0.1050757124
A37: 1.2 | B37: 0.3649141821 | C37: 0.1108444941
A38: 1.4 | B38: 0.3948657416 | C38: 0.1166132759
A39: 1.6 | B39: 0.4268214625 | C39: 0.1223820576
A40: 1.8 | B40: 0.4603641831 | C40: 0.1281508393
A41: 2 | B41: 0.4951715003 | C41: 0.1339196211
A42: 2.2 | B42: 0.5309947849 | C42: 0.1396884028
A43: 2.4 | B43: 0.5676417196 | C43: 0.1454571845
A44: 2.6 | B44: 0.6049626397 | C44: 0.1512259663
A45: 2.7 | B45: 0.6238381298 | C45: 0.1541103571
A46: Stock1 | B46: =SQRT(A3) -> 0.316227766 | D46: =F3 -> 0.06
A47: Stock2 | B47: =SQRT(B4) -> 0.5477225575 | D47: =F4 -> 0.08
A48: Stock3 | B48: =SQRT(C5) -> 0.632455532 | D48: 0.1
A49: Stock4 | B49: =SQRT(D6) -> 0.7071067812 | D49: 0.15
A51: Once we have the weights on the Market portfolio (x) we can show that the expected return of each
A52: asset or stock is the SML formula: Ri = Rf + Bi*(Rm-Rf).
B54: For the first of the 4 stocks above:
B55: Portfolio x = M | C55: =B8 -> 0.1924206645 | D55: =C8 -> 0.2551368377 | E55: =D8 -> 0.1949369829 | F55: =E8 -> 0.3575055149 | G55: <--Market Weights
B56: Portfolio A | C56: 1 | D56: 0 | E56: 0 | F56: 0 | G56: <--First stock 100% weight
B57: Changing the weights above to show each stock as 100% gives that stock's expected return (below):
B58: Covariance(M,A) | C58: =MMULT(MMULT(C55:F55,A3:D6),TRANSPOSE(C56:F56)) -> 0.04551682006 | D58: =getformula(C58) -> <-- =MMULT(MMULT(C55:F55,A3:D6),TRANSPOSE(C56:F56))
B59: Correlation(M,A) | C59: =C58/(A3*B13)^0.5 -> 0.4264784841 | D59: <-- =C58/(A3*B13)^0.5
B60: Beta A | C60: =C59*(A3/B13)^0.5 -> 0.3995971097 | D60: <-- =C59*(A3/B13)^0.5
B61: Beta A | C61: =C58/B13 -> 0.3995971097 | D61: <-- =C58/B13 | F61: <-- Beta = Covariance/Variance M
B62: E(Return of A) | C62: =I8+C60*(K12-K11) -> 0.06000003769 | D62: <-- =I8+C60*(K12-K11)

Sheet Page 212
A1: A FOUR-ASSET PORTFOLIO PROBLEM
A2: Variance-covariance, S | F2: Mean returns E(r) | G2: This sheet is similar to previous. Individual stocks are added to chart below.
A3: 0.1 | B3: 0.01 | C3: 0.03 | D3: 0.05 | F3: 0.06
A4: 0.01 | B4: 0.3 | C4: 0.06 | D4: -0.04 | F4: 0.08
A5: 0.03 | B5: 0.06 | C5: 0.4 | D5: 0.02 | F5: 0.1
A6: 0.05 | B6: -0.04 | C6: 0.02 | D6: 0.5 | F6: 0.15
A8: Portfolio x | B8: 0.2 | C8: 0.3 | D8: 0.4 | E8: 0.1
A9: Portfolio y | B9: 0.2 | C9: 0.1 | D9: 0.1 | E9: 0.6
A11: Portfolio x and y statistics: Mean, variance, covariance, correlation
A12: Mean, E(rx) | B12: =MMULT(B8:E8,F3:F6) -> 0.091 | D12: Mean, E(ry) | E12: =MMULT(B9:E9,F3:F6) -> 0.12 | F12: =getformula(E12) -> <-- {=MMULT(B9:E9,F3:F6)}
A13: Variance sx2 | B13: =MMULT(MMULT(B8:E8,A3:D6),TRANSPOSE(B8:E8)) -> 0.1216 | D13: Variance sy2 | E13: =MMULT(MMULT(B9:E9,A3:D6),TRANSPOSE(B9:E9)) -> 0.2034 | F13: =getformula(E13) -> <-- {=MMULT(MMULT(B9:E9,A3:D6),TRANSPOSE(B9:E9))}
A14: Covariance(x,y) | B14: =MMULT(MMULT(B8:E8,A3:D6),TRANSPOSE(B9:E9)) -> 0.0714
A15: Correlation rxy | B15: =B14/SQRT(B13*E13) -> 0.4540001016 | C15: =getformula(B15) -> <-- =B14/SQRT(B13*E13)
A17: Calculating returns of combinations of Portfolio x and Portfolio y
A18: Proportion of x | B18: 0.3
A19: Mean portfolio return, E(rp) | B19: =B18*B12+(1-B18)*E12 -> 0.1113 | C19: =getformula(B19) -> <-- =B18*B12+(1-B18)*E12
A20: Portfolio variance sp2 | B20: =B18^2*B13+(1-B18)^2*E13+2*B18*(1-B18)*B14 -> 0.140598 | C20: =getformula(B20) -> <-- =B18^2*B13+(1-B18)^2*E13+2*B18*(1-B18)*B14
A21: Portfolio standard deviation sp | B21: =SQRT(B20) -> 0.3749639983 | C21: =getformula(B21) -> <-- =SQRT(B20)
A23: Table of returns (using Data Table)
A24: Proportion of x | B24: Standard deviation | C24: Mean
B25: =B21 -> 0.3749639983 | C25: =B19 -> 0.1113
A26: -1 | B26: 0.8059776672 | C26: 0.149
A27: -0.8 | B27: 0.7288401745 | C27: 0.1432
A28: -0.6 | B28: 0.6537522467 | C28: 0.1374
A29: -0.4 | B29: 0.5815083834 | C29: 0.1316
A30: -0.2 | B30: 0.513310822 | C30: 0.1258
A31: 0 | B31: 0.4509988914 | C31: 0.12
A32: 0.2 | B32: 0.39735123 | C32: 0.1142
A33: 0.4 | B33: 0.3563032416 | C33: 0.1084
A34: 0.6 | B34: 0.3325537551 | C34: 0.1026
A35: 0.8 | B35: 0.3298605766 | C35: 0.0968
A36: 1 | B36: 0.3487119155 | C36: 0.091
A37: 1.2 | B37: 0.3859637289 | C37: 0.0852
A38: 1.4 | B38: 0.4369347777 | C38: 0.0794
A39: 1.6 | B39: 0.4974253713 | C39: 0.0736
A40: 1.8 | B40: 0.5643828488 | C40: 0.0678
A41: 2 | B41: 0.635767253 | C41: 0.062
A42: 2.2 | B42: 0.7102450281 | C42: 0.0562
A43: 2.4 | B43: 0.7869383712 | C43: 0.0504
A44: 2.6 | B44: 0.8652583429 | C44: 0.0446
A45: 2.7 | B45: 0.9048966792 | C45: 0.0417
A46: Stock1 | B46: =SQRT(A3) -> 0.316227766 | D46: =F3 -> 0.06
A47: Stock2 | B47: =SQRT(B4) -> 0.5477225575 | D47: =F4 -> 0.08
A48: Stock3 | B48: =SQRT(C5) -> 0.632455532 | D48: 0.1
A49: Stock4 | B49: =SQRT(D6) -> 0.7071067812 | D49: 0.15

Sheet Appendix 8.2
A1: APPLE AND GOOGLE COMPARING CONTINUOUS AND DISCRETE RETURNS
A3: Date | B3: AAPL price | C3: Continuous return | D3: Discrete return | F3: Google price | G3: Continuous return | H3: Discrete return
A4: 2007-06-01 | B4: 122.04 | F4: 580.11
A5: 2007-07-02 | B5: 131.76 | C5: =LN(B5/B4) -> 0.07663322602 | D5: =B5/B4-1 -> 0.0796460177 | E5: =getformula(D5) -> <-- =B5/B4-1 | F5: 645.9 | G5: =LN(F5/F4) -> 0.1074269523 | H5: =F5/F4-1 -> 0.1134095258
A6: 2007-08-01 | B6: 138.48 | C6: =LN(B6/B5) -> 0.049743825 | D6: =B6/B5-1 -> 0.05100182149 | F6: 599.39 | G6: =LN(F6/F5) -> -0.07473222165 | H6: =F6/F5-1 -> -0.07200805078
A7: 2007-09-04 | B7: 153.47 | C7: 0.1027791973 | D7: 0.1082466782 | F7: 592.64 | G7: -0.01132533938 | H7: -0.01126144914
A8: 2007-10-01 | B8: 189.95 | C8: 0.2132557714 | D8: 0.2377011794 | F8: 515.04 | G8: -0.1403425645 | H8: -0.1309395248
A9: 2007-11-01 | B9: 182.22 | C9: -0.04154613135 | D9: -0.04069491972 | F9: 540.96 | G9: 0.04910077141 | H9: 0.05032618826
A10: 2007-12-03 | B10: 198.08 | C10: 0.08345624121 | D10: 0.0870376468 | F10: 603.69 | G10: 0.1097154822 | H10: 0.1159605146
A11: 2008-01-02 | B11: 135.36 | C11: -0.3807330936 | D11: -0.3166397415 | F11: 506.38 | G11: -0.1757734456 | H11: -0.1611920025
A12: 2008-02-01 | B12: 125.02 | C12: -0.07946417135 | D12: -0.07638888889 | F12: 529.02 | G12: 0.04373886275 | H12: 0.04470950669
A13: 2008-03-03 | B13: 143.5 | C13: 0.1378613107 | D13: 0.1478163494 | F13: 544.1 | G13: 0.02810681516 | H13: 0.02850553854
A14: 2008-04-01 | B14: 173.95 | C14: 0.1924328664 | D14: 0.212195122 | F14: 586.76 | G14: 0.07548282413 | H14: 0.07840470502
A15: 2008-05-01 | B15: 188.75 | C15: 0.08165548653 | D15: 0.08508192009 | F15: 613.4 | G15: 0.04440137406 | H15: 0.04540186788
A16: 2008-06-02 | B16: 167.44 | C16: -0.11979831 | D16: -0.1129006623 | F16: 600.36 | G16: -0.02148777639 | H16: -0.02125855885
A17: 2008-07-01 | B17: 158.95 | C17: -0.05203539078 | D17: -0.05070473005 | F17: 593.97 | G17: -0.01070066225 | H17: -0.01064361383
A18: 2008-08-01 | B18: 169.53 | C18: 0.06444021495 | D18: 0.06656181189 | F18: 555.71 | G18: -0.06658223759 | H18: -0.06441402764
A19: 2008-09-02 | B19: 113.66 | C19: -0.3998183664 | D19: -0.3295581903 | F19: 613.7 | G19: 0.09925963395 | H19: 0.1043529899
A20: 2008-10-01 | B20: 107.59 | C20: -0.05488382926 | D20: -0.05340489178 | F20: 525.79 | G20: -0.1546043159 | H20: -0.1432458856
A21: 2008-11-03 | B21: 92.67 | C21: -0.149282911 | D21: -0.138674598 | F21: 450.02 | G21: -0.1556098673 | H21: -0.1441069629
A22: 2008-12-01 | B22: 85.35 | C22: -0.08228434636 | D22: -0.07898996439 | F22: 484.85 | G22: 0.07454753853 | H22: 0.07739656015
A23: 2009-01-02 | B23: 90.13 | C23: 0.05449262333 | D23: 0.05600468658 | F23: 444.95 | G23: -0.08587764845 | H23: -0.08229349283
A24: 2009-02-02 | B24: 89.31 | C24: -0.009139608873 | D24: -0.009097969599 | F24: 485.63 | G24: 0.08748510078 | H24: 0.09142600292
A25: 2009-03-02 | B25: 105.12 | C25: 0.162989091 | D25: 0.1770238495 | F25: 525.7 | G25: 0.07928369075 | H25: 0.08251137697
A26: 2009-04-01 | B26: 125.83 | C26: 0.1798292349 | D26: 0.1970129376 | F26: 567.12 | G26: 0.07584021372 | H26: 0.07879018452
A27: 2009-05-01 | B27: 135.81 | C27: 0.07632506051 | D27: 0.07931335929 | F27: 526.8 | G27: -0.07374995168 | H27: -0.07109606433
A28: 2009-06-01 | B28: 142.43 | C28: 0.04759380083 | D28: 0.04874456962 | F28: 529.94 | G28: 0.005942822721 | H28: 0.005960516325
A29: 2009-07-01 | B29: 163.39 | C29: 0.1372893301 | D29: 0.1471600084 | F29: 619.98 | G29: 0.1569234269 | H29: 0.1699060271
A30: 2009-08-03 | B30: 168.21 | C30: 0.02907321776 | D30: 0.0294999694 | F30: 583 | G30: -0.0615000331 | H30: -0.05964708539
A31: 2009-09-01 | B31: 185.35 | C31: 0.09703273079 | D31: 0.101896439 | F31: 536.12 | G31: -0.08382916974 | H31: -0.08041166381
A32: 2009-10-01 | B32: 188.5 | C32: 0.01685207729 | D32: 0.01699487456 | F32: 495.85 | G32: -0.07808455498 | H32: -0.0751137805
A33: 2009-11-02 | B33: 199.91 | C33: 0.05876925838 | D33: 0.06053050398 | F33: 461.67 | G33: -0.07142311149 | H33: -0.06893213673
A34: 2009-12-01 | B34: 210.73 | C34: 0.05271042794 | D34: 0.05412435596 | F34: 443.05 | G34: -0.04116771965 | H34: -0.04033183876
A35: 2010-01-04 | B35: 192.06 | C35: -0.09276987 | D35: -0.08859678261 | F35: 421.59 | G35: -0.04964935271 | H35: -0.048436971
A36: 2010-02-01 | B36: 204.62 | C36: 0.06334677724 | D36: 0.06539623034 | F36: 417.23 | G36: -0.01039564928 | H36: -0.01034180128
A37: 2010-03-01 | B37: 235 | C37: 0.1384309137 | D37: 0.1484703353 | F37: 395.97 | G37: -0.05229917769 | H37: -0.05095510869
A38: 2010-04-01 | B38: 261.09 | C38: 0.1052796613 | D38: 0.1110212766 | F38: 348.06 | G38: -0.1289635721 | H38: -0.1209940147
A39: 2010-05-03 | B39: 256.88 | C39: -0.01625612569 | D39: -0.01612470796 | F39: 337.99 | G39: -0.02935856946 | H39: -0.02893179337
A40: 2010-06-01 | B40: 251.53 | C40: -0.02104678306 | D40: -0.02082684522 | F40: 338.53 | G40: 0.001596405471 | H40: 0.001597680405
A41: 2010-07-01 | B41: 257.25 | C41: 0.02248610799 | D41: 0.02274082614 | F41: 307.65 | G41: -0.09564994153 | H41: -0.09121791274
A42: 2010-08-02 | B42: 243.1 | C42: -0.05657549339 | D42: -0.05500485909 | F42: 292.96 | G42: -0.04892669226 | H42: -0.0477490655
A43: 2010-09-01 | B43: 283.75 | C43: 0.1546206875 | D43: 0.1672151378 | F43: 359.36 | G43: 0.2042885906 | H43: 0.2266521027
A44: 2010-10-01 | B44: 300.98 | C44: 0.05895024856 | D44: 0.06072246696 | F44: 400.52 | G44: 0.1084390313 | H44: 0.1145369546
A45: 2010-11-01 | B45: 311.15 | C45: 0.03323129366 | D45: 0.03378962057 | F45: 463.29 | G45: 0.1455895051 | H45: 0.1567212624
A46: 2010-12-01 | B46: 322.56 | C46: 0.03601405443 | D46: 0.0366704162 | F46: 473.75 | G46: 0.02232654849 | H46: 0.02257765115
A47: 2011-01-03 | B47: 339.32 | C47: 0.0506544495 | D47: 0.0519593254 | F47: 526.42 | G47: 0.1054196168 | H47: 0.111176781
A48: 2011-02-01 | B48: 353.21 | C48: 0.04011916596 | D48: 0.0409348108 | F48: 585.8 | G48: 0.1068790612 | H48: 0.1127996657
A49: 2011-03-01 | B49: 348.51 | C49: -0.01339585671 | D49: -0.01330653153 | F49: 574.29 | G49: -0.01984393918 | H49: -0.01964834414
A50: 2011-04-01 | B50: 350.13 | C50: 0.004637589899 | D50: 0.004648360162 | F50: 440.47 | G50: -0.2652921566 | H50: -0.2330181616
A51: 2011-05-02 | B51: 347.83 | C51: -0.006590659423 | D51: -0.006568988661 | F51: 471.18 | G51: 0.06739784798 | H51: 0.06972097986
A52: 2011-06-01 | B52: 335.67 | C52: -0.03558532018 | D52: -0.0349596067 | F52: 564.3 | G52: 0.1803458384 | H52: 0.1976314784
A53: 2011-07-01 | B53: 390.48 | C53: 0.1512482171 | D53: 0.1632853696 | F53: 691.48 | G53: 0.2032482031 | H53: 0.2253765727
A54: 2011-08-01 | B54: 384.83 | C54: -0.01457507325 | D54: -0.01446937103 | F54: 693 | G54: 0.002195771135 | H54: 0.002198183606
A55: 2011-09-01 | B55: 381.32 | C55: -0.009162760705 | D55: -0.009120910532 | F55: 707 | G55: 0.02000066671 | H55: 0.0202020202
A56: 2011-10-03 | B56: 404.78 | C56: 0.05970479201 | D56: 0.06152313018 | F56: 567.27 | G56: -0.220195285 | H56: -0.1976379066
A57: 2011-11-01 | B57: 382.2 | C57: -0.05739967783 | D57: -0.05578338851 | F57: 515.25 | G57: -0.09618316109 | H57: -0.09170236395
A58: 2011-12-01 | B58: 405 | C58: 0.0579430353 | D58: 0.05965463108 | F58: 510 | G58: -0.01024149405 | H58: -0.01018922853
A59: 2012-01-03 | B59: 456.48 | C59: 0.1196578204 | D59: 0.1271111111 | F59: 522.7 | G59: 0.02459696 | H59: 0.02490196078
A60: 2012-02-01 | B60: 542.44 | C60: 0.1725325928 | D60: 0.1883105503 | F60: 497.91 | G60: -0.04858834792 | H60: -0.04742682227
A61: 2012-03-01 | B61: 599.55 | C61: 0.1001018936 | D61: 0.1052835337 | F61: 471.38 | G61: -0.05475477501 | H61: -0.05328272178
A62: 2012-04-02 | B62: 583.98 | C62: -0.02631263816 | D62: -0.02596947711 | F62: 458.16 | G62: -0.0284460947 | H62: -0.02804531376
A63: 2012-05-01 | B63: 577.73 | C63: -0.01076010416 | D63: -0.01070242132 | F63: 449.45 | G63: -0.01919385507 | H63: -0.01901082591
A64: 2012-06-01 | B64: 584 | C64: 0.01079435132 | D64: 0.01085282052 | F64: 501.5 | G64: 0.1095789944 | H64: 0.11580821
A66: Monthly average | C66: =AVERAGE(C5:C64) -> 0.02609253538 | D66: =AVERAGE(D5:D64) -> 0.03241159345 | E66: =ggetformula(G66)&" -->" -> =AVERAGE(G5:G64) --> | G66: =AVERAGE(G5:G64) -> -0.002426902222 | H66: =AVERAGE(H5:H64) -> 0.002557975232
A67: Monthly standard deviation | C67: =_xlfn.STDEV.S(C5:C64) -> 0.1117035841 | D67: =_xlfn.STDEV.S(D5:D64) -> 0.1068667133 | E67: =ggetformula(G67)&" -->" -> =STDEV.S(G5:G64) --> | G67: =_xlfn.STDEV.S(G5:G64) -> 0.1008720981 | H67: =_xlfn.STDEV.S(H5:H64) -> 0.1007064261
A69: Annual average | C69: =12*C66 -> 0.3131104246 | E69: =ggetformula(G69)&" -->" -> =12*G66 --> | G69: =12*G66 -> -0.02912282667
A70: Annual variance | C70: =12*C67 -> 1.340443009 | E70: =ggetformula(G70)&" -->" -> =12*G67 --> | G70: =12*G67 -> 1.210465177
A71: Annual standard deviation | C71: =SQRT(C70) -> 1.157775025 | E71: =ggetformula(G71)&" -->" -> =SQRT(G70) --> | G71: =SQRT(G70) -> 1.100211424
